Cogmind - Beta 10.2 @@@ ROGUE MODE // 2020.12.21 @ 01:06:16 Player: aperiodic Result: Heading to fleet! Performance ------------- Evolutions (9) 4500 Regions Visited (41) 8200 Robots Destroyed (384) 1920 Value Destroyed (10668) 10668 Prototype IDs (182) 3640 Alien Tech Used (11) 2200 Bonus (25587) 25587 TOTAL SCORE: 56715 Bonus ------- Triggered High Security 500 High Alert Combat Kills 2070 Follower Combat Kills 3599 Network Hubs Disabled 400 Aligned with FarCom 300 Met Data Miner 300 Destroyed Z-Imprinter 1000 Met Warlord at Base 500 MAIN.C Attacked Warlord 500 Built Enhanced Grunts 300 A7 Reached Mainframe 300 Used Core Reset Matrix 3000 Destroyed MAIN.C Guards 500 Met MAIN.C 5000 Destroyed MAIN.C Shell 5000 Win 3000 Friendly Fire -682 Cogmind --------- Core Integrity 991/1600 Matter 278/425 Energy 74/1100 System Corruption 0% Temperature Cool (6) Movement Flying (10) Location To Fleet Rendezvous Parts ------- > --- POWER (1) -------- (None) > --- PROPULSION (3) --- Improved Diametric Drive Cooled Q-thruster Experimental Q-thruster > --- UTILITY (18) ----- Advanced Power Amplifier Large Storage Unit Large Storage Unit Experimental Energy Well Dimensional Manipulator Dimensional Manipulator Dimensional Manipulator Zionite Metafield Generator Experimental Core Analyzer Advanced Powered Armor Advanced Hacking Suite Ghost Barrier Quantum Router > --- WEAPON (3) ------- (None) > --- INVENTORY (16) --- Improved Matter Compressor (300) Experimental Sensor Array Experimental Terrain Scan Processor Experimental ECM Suite Experimental Cloaking Device Advanced Component Analysis Suite Transdimensional Reconstructor Matter Drive Advanced Remote Datajack Peak State ------------ > --- POWER ------------ Improved Quantum Reactor > --- PROPULSION ------- Improved Diametric Drive Cooled Q-thruster Experimental Q-thruster > --- UTILITY ---------- Improved Fusion Compressor Advanced Power Amplifier Large Storage Unit Large Storage Unit Experimental Energy Well Dimensional Manipulator Dimensional Manipulator Dimensional Manipulator Zionite Metafield Generator Experimental Sensor Array Experimental Signal Interpreter Experimental Melee Analysis Suite Experimental ECM Suite Advanced Hacking Suite Ghost Barrier Quantum Router Matter Drive > --- WEAPON ----------- Nanosword Sigix Broadsword > --- INVENTORY -------- Improved Matter Compressor Experimental Terrain Scan Processor Advanced Reaction Control System Advanced Phase Shifter Advanced Powered Armor Experimental Force Field Advanced Component Analysis Suite Transdimensional Reconstructor Transdimensional Reconstructor Integrity Redistributor Integrity Redistributor Terrabomb Advanced Remote Datajack [Rating: 235] Favorites ----------- Power Micro Fission Core Engine Ion Engine Power Core Micro Fission Core Reactor Mini Fusion Reactor Propulsion Cooled Impulse Thruster Treads Light Treads Wheel Wheel Hover Unit Zionite Glidesys II Flight Unit Cooled Impulse Thruster Utility Large Storage Unit Device Gravity Neutralizing Apparatus Storage Large Storage Unit Processor Experimental Signal Interpreter Hackware Quantum Router Protection Experimental Utility Shielding Artifact Matter Drive Weapon Improved Assault Rifle Energy Gun Heavy EM Shotgun Energy Cannon Guided Plasma Cannon Ballistic Gun Improved Assault Rifle Ballistic Cannon Mass Driver Launcher Mini Smartbomb Launcher Special Weapon Molecular Deconstructor Slashing Weapon Chainsword Piercing Weapon Force Lance Build | -11 -10 -10 -9 -9 -9 -8 -8 -7 -7 -7 -7 -7 -7 -7 -6 -6 -6 -6 -6 -5 -5 -5 -5 -5 -5 -5 -4 -4 -4 -4 -4 -4 -4 -4 -3 -3 -2 -2 -2 -1 -1 ------- Run | Scr Mat Min Mat Min Exi Min Mat Fac Was Fac Low Low Zio Dee Pro Fac Low Low Dat Pro Fac Was Fac Upp Upp War Pro Fac Was Fac Ext Cet Arc Hub Res Arm Res Qua Sec Acc Com Slots Evolved 18 | . . . 2 . . . 2 2 . . . . . . . 2 . . . . 2 . . . . . . 2 . . . . . . 2 . 2 . . 2 . Power . | . . . . . . . . . . . . . . . . . . . . . . . . . . . . . . . . . . . . . . . . . . Propulsion 1 | . . . . . . . . 1 . . . . . . . . . . . . . . . . . . . . . . . . . . . . . . . . . Utility 16 | . . . 2 . . . 2 1 . . . . . . . 2 . . . . 2 . . . . . . 2 . . . . . . 2 . 2 . . 1 . Weapon 1 | . . . . . . . . . . . . . . . . . . . . . . . . . . . . . . . . . . . . . . . . 1 . Parts Attached 632 | 6 6 15 38 1 30 1 32 30 . 17 2 . 6 22 4 5 2 4 1 5 14 7 62 1 . 6 8 30 . 31 7 7 2 8 43 21 43 26 63 17 9 Power 32 | 1 . 2 2 . 5 . 1 4 . 1 . . . 2 . . . . . . 2 1 5 . . . . . . 2 . . . . . 1 2 1 . . . Engine 5 | 1 . 1 1 . . . . 1 . . . . . . . . . . . . . . 1 . . . . . . . . . . . . . . . . . . Core 15 | . . 1 1 . 3 . 1 3 . 1 . . . . . . . . . . 1 . 3 . . . . . . 1 . . . . . . . . . . . Reactor 12 | . . . . . 2 . . . . . . . . 2 . . . . . . 1 1 1 . . . . . . 1 . . . . . 1 2 1 . . . Propulsion 73 | 2 1 7 10 . 1 . 10 6 . 1 . . 1 4 . 1 . 1 . . 2 2 6 . . 2 . . . . . . . . 3 2 3 2 5 1 . Treads 16 | . . 2 5 . 1 . 8 . . . . . . . . . . . . . . . . . . . . . . . . . . . . . . . . . . Leg . | . . . . . . . . . . . . . . . . . . . . . . . . . . . . . . . . . . . . . . . . . . Wheel 14 | 2 1 5 4 . . . 2 . . . . . . . . . . . . . . . . . . . . . . . . . . . . . . . . . . Hover 14 | . . . . . . . . . . . . . . 4 . 1 . 1 . . 2 2 4 . . . . . . . . . . . . . . . . . . Flight 29 | . . . 1 . . . . 6 . 1 . . 1 . . . . . . . . . 2 . . 2 . . . . . . . . 3 2 3 2 5 1 . Utility 373 | 1 2 1 11 1 16 . 9 7 . 3 . . 3 12 3 4 2 1 . 3 6 3 40 1 . 4 5 26 . 25 7 4 1 7 33 14 29 17 50 13 9 Device 245 | . 1 . . 1 4 . 3 3 . 1 . . 1 6 1 1 1 1 . 2 2 2 30 1 . 3 3 19 . 16 3 4 1 6 24 12 24 9 46 7 7 Storage 35 | 1 1 1 4 . 6 . . 1 . 1 . . . 1 1 1 . . . . 1 . . . . 1 1 3 . 4 1 . . 1 2 . 1 1 1 . . Processor 10 | . . . 1 . 2 . . 1 . . . . . . . . . . . . . . 2 . . . . . . . . . . . . 1 1 1 . . 1 Hackware 20 | . . . . . . . 4 2 . . . . 1 . . 2 . . . . 3 . . . . . . 2 . 1 . . . . 3 . . . . 2 . Protection 58 | . . . 6 . 4 . 2 . . 1 . . 1 5 1 . 1 . . 1 . 1 8 . . . 1 2 . 4 3 . . . 4 1 3 5 1 2 1 Artifact 5 | . . . . . . . . . . . . . . . . . . . . . . . . . . . . . . . . . . . . . . 1 2 2 . Weapon 154 | 2 3 5 15 . 8 1 12 13 . 12 2 . 2 4 1 . . 2 1 2 4 1 11 . . . 3 4 . 4 . 3 1 1 7 4 9 6 8 3 . Energy Gun 11 | 1 . . 4 . . . 6 . . . . . . . . . . . . . . . . . . . . . . . . . . . . . . . . . . Energy Cannon 29 | . . . . . 1 . . 2 . 6 1 . . 3 . . . . . . . . . . . . . . . 2 . 1 1 . 2 1 3 2 4 . . Ballistic Gun 40 | 1 3 4 8 . 4 1 4 6 . 3 1 . . . . . . . . . 2 1 1 . . . . . . . . 1 . . . . . . . . . Ballistic Cannon 10 | . . . . . . . . . . 1 . . . . . . . 2 . . 1 . 3 . . . 2 1 . . . . . . . . . . . . . Launcher 18 | . . 1 3 . 2 . . 2 . . . . . . . . . . . . . . 5 . . . 1 1 . . . 1 . 1 1 . . . . . . Special Weapon 8 | . . . . . 1 . . . . . . . 1 1 1 . . . 1 2 1 . . . . . . . . . . . . . . . . . . . . Impact Weapon . | . . . . . . . . . . . . . . . . . . . . . . . . . . . . . . . . . . . . . . . . . . Slashing Weapon 27 | . . . . . . . 2 3 . 2 . . . . . . . . . . . . 2 . . . . . . 1 . . . . 1 1 4 4 4 3 . Piercing Weapon 11 | . . . . . . . . . . . . . 1 . . . . . . . . . . . . . . 2 . 1 . . . . 3 2 2 . . . . Special Melee Weapon . | . . . . . . . . . . . . . . . . . . . . . . . . . . . . . . . . . . . . . . . . . . Unidentified Prototypes 42 | . . . 1 1 6 . 2 2 . 2 . . . 7 1 . . . . . 3 . 1 . . 4 . 1 . 2 1 1 . . . . 3 2 2 . . Parts Lost 59 | . . 7 3 . 5 . 4 6 . . . . . 1 2 . 1 . . 3 6 . 2 . . . . . . 1 . . . . 3 . 2 . 3 . 10 Power 10 | . . 1 1 . 1 . 1 1 . . . . . 1 . . . . . . 1 . 1 . . . . . . . . . . . . . 1 . . . 1 Propulsion 16 | . . 4 . . 1 . 1 2 . . . . . . 1 . 1 . . 2 3 . 1 . . . . . . . . . . . . . . . . . . Utility 19 | . . . 1 . 2 . 1 1 . . . . . . 1 . . . . 1 1 . . . . . . . . 1 . . . . . . . . 3 . 7 Weapon 14 | . . 2 1 . 1 . 1 2 . . . . . . . . . . . . 1 . . . . . . . . . . . . . 3 . 1 . . . 2 Highest Loss Streak 7 | . . 6 1 . 3 . 2 4 . . . . . 1 2 . 1 . . 2 5 . 1 . . . . . . 1 . . . . 2 . 1 . 3 . 7 Average Slot Usage (%) 95 | . 97 95 97 100 96 100 98 88 76 88 99 100 99 99 88 92 92 85 91 82 79 81 94 94 94 98 100 99 100 99 100 100 99 97 95 98 99 95 93 92 93 Engine 1 | . 14 4 . 11 6 . . 1 7 4 . . . . . . . . . . . . . . . . . . . . . . . . . . . . . . . Core 2 | . . 9 8 . 1 . 6 3 . 2 7 7 7 1 . . . . . . . 1 2 5 5 5 5 5 5 3 . . . . . . . . . . . Reactor 2 | . . . . . 2 11 1 . . . . . . 5 7 6 6 6 6 6 4 3 2 . . . . . . 1 5 5 5 5 4 3 4 4 4 4 3 Treads 4 | . . 1 12 22 21 22 12 . . . . . . . . . . . . . . . . . . . . . . . . . . . . . . . . . . Wheel 2 | . 28 23 9 . . . 5 . . . . . . . . . . . . . . . . . . . . . . . . . . . . . . . . . . Hover 2 | . . . . . . . . . . . . . . 18 16 20 19 13 20 11 5 7 9 . . . . . . . . . . . . . . . . . . Flight 8 | . . . . . . . . 18 15 19 23 23 23 4 . . . . . . . . 3 11 11 15 17 15 15 15 15 15 15 15 13 14 13 13 13 12 12 Device 17 | . 13 4 . 3 4 . 1 13 15 14 15 15 15 15 12 13 12 20 20 20 21 23 24 35 35 35 31 30 26 28 26 26 28 28 25 21 23 25 28 35 32 Storage 15 | . 14 23 32 33 28 33 27 7 7 7 7 7 7 7 14 13 13 13 13 13 10 5 5 5 5 5 8 8 10 8 10 10 10 9 8 9 12 12 13 12 12 Processor 5 | . . . . . 4 11 9 11 7 7 7 7 7 7 7 6 6 6 6 6 5 5 5 5 5 5 5 5 5 5 5 5 5 5 4 5 10 13 12 8 9 Hackware 14 | . . . . . . . 12 17 23 23 23 23 23 16 15 25 25 20 20 17 22 23 23 11 11 11 11 17 21 23 21 21 18 15 27 28 21 17 14 13 12 Protection 3 | . . . 10 7 3 . 3 . . . . . . 5 . . . . . . . 3 3 5 5 5 5 4 5 1 4 5 5 5 2 3 4 4 3 1 4 Energy Cannon 1 | . . . . . 4 . . . . . 2 7 6 6 3 . . . . . . . . . . . . . . 3 5 1 2 4 . . . . . . . Ballistic Gun 6 | . 26 27 18 22 15 21 10 5 . 2 4 . . . . . . . . . 2 3 3 . . . . . . . . 3 2 . . . . . . . . Slashing Weapon 2 | . . . . . . . 2 4 . 3 7 7 4 . . . . . . . . . 4 5 5 5 5 1 . . . . . . . 1 3 3 3 5 7 Piercing Weapon 1 | . . . . . . . . . . . . . 1 7 3 . . . . . . . . . . . . 3 5 5 5 5 5 5 3 6 3 . . . . Naked Turns . | . . . . . . . . . . . . . . . . . . . . . . . . . . . . . . . . . . . . . . . . . . Heaviest Build 126 | 11 28 43 69 66 121 121 126 55 14 24 30 30 30 37 37 37 49 43 43 49 37 51 56 41 41 41 52 53 48 51 51 51 51 52 52 52 69 94 97 103 106 Greatest Support 118 | 26 26 40 40 40 52 40 40 30 18 32 30 30 31 90 78 70 70 59 59 38 64 57 73 51 51 53 53 53 53 53 63 53 53 53 66 56 89 118 105 106 106 Greatest Overweight (x) 13 | . 1 4 5 1 3 3 9 5 . . . . . 1 . . 1 . . 1 1 1 2 . . 13 . . . . 1 . . . . 1 . . 1 . . Average Overweight (x) . | . . 2 1 1 1 2 3 . . . . . . . . . . . . . . . . . . . . . . . . . . . . . . . . . . Largest Inventory Capacity 28 | 6 10 16 22 22 28 28 28 28 8 8 8 8 8 8 8 10 10 10 10 10 10 10 10 10 10 10 10 10 10 10 10 10 10 10 10 10 16 16 16 16 16 Average Capacity 14 | 5 8 13 20 22 24 28 28 8 8 8 8 8 8 8 8 8 10 10 10 10 10 10 10 10 10 10 10 10 10 10 10 10 10 10 10 10 15 16 16 16 16 Most Carried 28 | 4 10 16 22 22 28 28 28 27 7 8 8 8 8 8 8 8 8 10 10 10 10 10 10 8 8 10 10 10 10 10 10 10 10 10 10 10 16 16 16 16 16 Average Carried 13 | 3 7 10 19 21 20 27 27 8 7 7 7 7 8 7 7 6 7 8 9 8 8 8 9 8 8 9 9 9 10 9 9 9 9 9 6 9 14 15 15 15 13 Final Capacity 28 | 6 10 16 22 22 28 28 28 8 8 8 8 8 8 8 8 10 10 10 10 10 10 10 10 10 10 10 10 10 10 10 10 10 10 10 10 10 16 16 16 16 16 Final Carried 28 | 4 9 16 22 22 28 28 27 7 7 8 7 8 8 8 7 8 7 9 10 10 9 9 8 8 8 10 10 10 10 9 9 10 9 9 10 10 16 16 16 16 10 Class Distribution -------------------- 26% | Hauler-Mutant 23% | Wizard-Sprinter 15% | Hacker-Sprinter 12% | Hacker-Mutant 9% | Wizard-Mutant 5% | Mutant 4% | Scavenger-Mutant Dominant Class ---------------- Mutant | -10/Materials Mutant | -10/Mines Hauler-Mutant | -9/Materials Hauler-Mutant | -9/Mines Hauler-Mutant | -9/Exiles Hauler-Mutant | -8/Mines Hauler-Mutant | -8/Materials Hacker-Mutant | -7/Factory Hacker-Mutant | -7/Waste Hacker-Mutant | -7/Factory Hacker-Sprinter | -7/Lower Caves Hacker-Sprinter | -7/Lower Caves Hacker-Sprinter | -7/Zion Scavenger-Mutant | -7/Deep Caves Scavenger-Mutant | -6/Proximity Caves Hacker-Mutant | -6/Factory Hacker-Mutant | -6/Lower Caves Hacker-Mutant | -6/Lower Caves Hacker-Mutant | -6/Data Miner Hacker-Mutant | -5/Proximity Caves Wizard-Mutant | -5/Factory Wizard-Mutant | -5/Waste Wizard-Mutant | -5/Factory Machinist-Sprinter | -5/Upper Caves Machinist-Sprinter | -5/Upper Caves Hacker-Mutant | -5/Warlord Hacker-Sprinter | -4/Proximity Caves Wizard-Sprinter | -4/Factory Wizard-Sprinter | -4/Waste Wizard-Sprinter | -4/Factory Wizard-Sprinter | -4/Extension Wizard-Sprinter | -4/Cetus Hacker-Sprinter | -4/Archives Hacker-Sprinter | -4/Hub_04(d) Wizard-Sprinter | -3/Research Wizard-Sprinter | -3/Armory Wizard-Sprinter | -2/Research Wizard-Sprinter | -2/Quarantine Wizard-Sprinter | -2/Section 7 Wizard-Sprinter | -1/Access Hacker-Sprinter | -1/Command Resources | -11 -10 -10 -9 -9 -9 -8 -8 -7 -7 -7 -7 -7 -7 -7 -6 -6 -6 -6 -6 -5 -5 -5 -5 -5 -5 -5 -4 -4 -4 -4 -4 -4 -4 -4 -3 -3 -2 -2 -2 -1 -1 ----------- Run | Scr Mat Min Mat Min Exi Min Mat Fac Was Fac Low Low Zio Dee Pro Fac Low Low Dat Pro Fac Was Fac Upp Upp War Pro Fac Was Fac Ext Cet Arc Hub Res Arm Res Qua Sec Acc Com Matter Collected 21185 | 263 185 342 1038 38 731 10 730 211 . 336 99 55 50 215 40 90 . 17 . 113 12 497 2198 296 32 78 118 2392 . 1206 684 133 198 581 1641 712 1882 825 1644 940 553 Remotely . | . . . . . . . . . . . . . . . . . . . . . . . . . . . . . . . . . . . . . . . . . . Salvage Created 19774 | 21 248 276 1480 39 437 . 2010 287 . 258 145 73 . 115 . 173 . . . 6 12 . 1417 296 . . 29 2049 . 1086 862 42 162 833 1494 189 965 379 1116 1512 1763 Parts 887 | 1 10 21 94 7 37 . 98 20 . 17 8 2 . 9 . 2 . . . 3 . . 69 8 . . 2 101 . 30 25 1 10 34 50 10 37 27 43 55 56 Haulers Intercepted 39 | . . . 5 . . . 3 1 . 3 . . . . . 1 . . . . . . 3 . . . . 5 . 3 . . . 3 1 . 1 . 4 6 . Recyclers Shooed 26 | . . 2 2 . . . 5 . . 1 . . . . . . . . . . . . 6 . . . . 3 . 2 1 . . . 3 . . . . . 1 Parts Field Recycled . | . . . . . . . . . . . . . . . . . . . . . . . . . . . . . . . . . . . . . . . . . . Retrieved Matter . | . . . . . . . . . . . . . . . . . . . . . . . . . . . . . . . . . . . . . . . . . . Parts Self-Destructed 26 | . . . . . . . . . . . 6 2 . . . . . . . 5 . . . . . 11 2 . . . . . . . . . . . . . . Prevented 3 | . . . . . . . . . . . 1 . . . . . . . . . . . . . . 2 . . . . . . . . . . . . . . . Kills | -11 -10 -10 -9 -9 -9 -8 -8 -7 -7 -7 -7 -7 -7 -7 -6 -6 -6 -6 -6 -5 -5 -5 -5 -5 -5 -5 -4 -4 -4 -4 -4 -4 -4 -4 -3 -3 -2 -2 -2 -1 -1 ------- Run | Scr Mat Min Mat Min Exi Min Mat Fac Was Fac Low Low Zio Dee Pro Fac Low Low Dat Pro Fac Was Fac Upp Upp War Pro Fac Was Fac Ext Cet Arc Hub Res Arm Res Qua Sec Acc Com Combat Hostiles Destroyed 133 | . 3 5 24 . 3 . 22 4 . . 2 3 . 2 . . . . . . . . 13 . . . . 6 . . 4 1 . 2 5 3 8 3 3 2 15 Melee 46 | . . . . . . . . . . . . . . 2 . . . . . . . . . . . . . 2 . . 4 . . 2 2 3 8 3 3 2 15 Guns 48 | . 3 4 17 . 3 . 21 . . . . . . . . . . . . . . . . . . . . . . . . . . . . . . . . . . Cannons 6 | . . . . . . . . 1 . . 2 2 . . . . . . . . . . . . . . . . . . . 1 . . . . . . . . . AOE 32 | . . 1 7 . . . 1 3 . . . . . . . . . . . . . . 13 . . . . 4 . . . . . . 3 . . . . . . Classes Destroyed 25 | 1 3 3 5 . 2 . 3 1 . . 1 . . . . . . . . . . . 1 1 . . . . . . . . . . . 1 2 . . . 1 Worker 84 | . . 3 5 1 . . 4 . . 1 . . . . . . . . . . . . 16 . . . . 17 . 9 1 . . 3 2 . 4 2 3 11 2 Builder 11 | . . . 2 . . . 1 . . . . . . . . . . . . . . . 2 . . . . 2 . . . . . 2 1 . . . 1 . . Tunneler 11 | 1 1 1 . 1 . . . . . 1 . . . . . . . . . . 1 . . . . . . 4 . . . . . . . . . . . 1 . Hauler 39 | . . . 5 . . . 3 1 . 3 . . . . . 1 . . . . . . 3 . . . . 5 . 3 . . . 3 1 . 1 . 4 6 . Recycler 44 | . 1 1 2 . . . 6 1 . 1 . . . . . 1 . . . . . . 3 . . . . 6 . 3 4 . . 1 8 . 1 . 2 2 1 Minesweeper 3 | . . . . . . . . . . . 2 . . . . . . . . . . . . . . . 1 . . . . . . . . . . . . . . Mechanic 3 | . . . . . . . 1 . . . . . . . . . . . . . . . . . . . . . . 1 . . . . 1 . . . . . . Operator 11 | . 1 . . . . . 2 . . . . . . . . . . . . . . . . . . . . . . . . . 5 . . . 1 . 1 . 1 Turret 1 | . . . . . 1 . . . . . . . . . . . . . . . . . . . . . . . . . . . . . . . . . . . . Watcher 38 | . . . 1 . . . 2 1 . . . . . . . . . . . . . . 4 . . . . 4 . 3 1 . . 3 3 1 3 3 2 5 2 Swarmer 26 | . . 3 6 . . . . 2 . . . 2 . . . . . . . . . . 2 . . . . 5 . . . . . . 2 . 2 . . . 2 Saboteur 1 | . . . . . . . . . . . . . . . . . . . . . . . 1 . . . . . . . . . . . . . . . . . . Grunt 49 | . 3 1 9 . . . 13 1 . . 2 . . . . . . . . . . . 8 . . . . . . . 3 . . . 2 . 2 . 3 2 . Brawler 4 | . . . 1 . . . 1 . . . . . . . . . . . . . . . . . . . . 1 . . . . . . 1 . . . . . . Duelist 1 | . . . . . . . 1 . . . . . . . . . . . . . . . . . . . . . . . . . . . . . . . . . . Sentry 17 | . . . 8 . . . 5 . . . . . . . . . . . . . . . . . . . . . . . 1 . . 2 . . . . . . 1 Specialist 1 | . . . . . . . . . . . . . . . . . . . . . . . . . . . . . . . . . . . . 1 . . . . . Hunter 8 | . . . . . . . 2 . . . . 1 . . . . . . . . . . . . . . . . . . . . . . . . 2 . . . 3 Programmer 13 | . . . . . . . . 1 . . . . . . . . . . . . . . 2 . . . . . . . . . . . . 2 . 3 . . 5 Behemoth 1 | . . . . . . . . . . . . . . . . . . . . . . . . . . . . . . . . . . . . . . . . . 1 Cetus Guard 1 | . . . . . . . . . . . . . . . . . . . . . . . . . . . . . . . . 1 . . . . . . . . . M Guard 1 | . . . . . . . . . . . . . . . . . . . . . . . . . . . . . . . . . . . . . . . . . 1 Combat Programmer 1 | . . . . . . . . . . . . . . . . . . . . . . . . . . . . . . . . . . . . . . . . . 1 Striker 1 | . . . . . . . . . . . . . . . . . . . . . . . . . . . . . . . . . . . . . 1 . . . . Executioner 1 | . . . . . . . . . . . . . . . . . . . . . . . . . . . . . . . . . . . . . 1 . . . . Zionite 8 | . . . . . 8 . . . . . . . . . . . . . . . . . . . . . . . . . . . . . . . . . . . . Z-Technician 5 | . . . . . . . . . . . . . . 5 . . . . . . . . . . . . . . . . . . . . . . . . . . . Samaritan 7 | . . . . . . . . . . . . . . . . . . . . . . . . 7 . . . . . . . . . . . . . . . . . Assembled 5 | . . 1 . . 2 . . . . . . . . 2 . . . . . . . . . . . . . . . . . . . . . . . . . . . Best Kill Streak 9 | 1 2 3 6 1 6 . 7 2 . 2 1 2 . 5 . 1 . . . . 1 . 9 . . . 1 5 . 6 3 1 4 4 6 2 3 2 4 5 3 Combat Bots Only 8 | . 2 3 5 . 1 . 3 2 . . 1 2 . 1 . . . . . . . . 8 . . . . 4 . . 2 1 . 1 5 2 2 2 2 1 3 Max Kills in Single Turn 4 | 1 1 1 2 1 1 . 2 1 . 1 1 1 . 1 . 1 . . . 1 1 . 4 1 . . 1 2 . 1 1 1 1 2 3 1 1 1 1 1 1 Gunslinging . | . . . . . . . . . . . . . . . . . . . . . . . . . . . . . . . . . . . . . . . . . . Exploded 3 | . . 1 2 . . . 1 1 . . . . . . . . . . . . . . 3 . . . . 2 . . . . . . 2 . . . . . . Melee 1 | . . . . . . . . . . . . . . 1 . . . . . . . . . . . . . 1 . . 1 . . 1 1 1 1 1 1 1 1 Uniques/NPCs Destroyed 7 | . . . . . 4 . . . . . . . . 1 . . . . . 1 . . . . . . . . . . . . . . . . . . . . 1 8R-AWN (-9/Exiles) EX-HEX (-9/Exiles) EX-BIN (-9/Exiles) EX-DEC (-9/Exiles) Z-Imprinter (-7/Deep Caves) Data Miner (-5/Proximity Caves) MAIN.C Shell (-1/Command) Combat | -11 -10 -10 -9 -9 -9 -8 -8 -7 -7 -7 -7 -7 -7 -7 -6 -6 -6 -6 -6 -5 -5 -5 -5 -5 -5 -5 -4 -4 -4 -4 -4 -4 -4 -4 -3 -3 -2 -2 -2 -1 -1 -------- Run | Scr Mat Min Mat Min Exi Min Mat Fac Was Fac Low Low Zio Dee Pro Fac Low Low Dat Pro Fac Was Fac Upp Upp War Pro Fac Was Fac Ext Cet Arc Hub Res Arm Res Qua Sec Acc Com Damage Taken 15132 | . 209 1066 864 . 738 . 1463 696 . 74 35 61 . 271 178 76 275 . . 459 215 . 652 . . . 24 285 . 91 59 88 25 48 564 225 546 154 1217 112 4362 Core 2167 | . 12 160 144 . 84 . 175 123 . 21 . . . . 38 . 22 . . 151 30 . 200 . . . 8 28 . 49 10 . . 33 73 66 227 11 142 . 360 Absorbed by Shields 4071 | . . . . . . . . . . . . . . . . . . . . . . . . . . . . . . . . 27 . . . . 103 121 24 87 3709 Core Remaining (%) 71 | 100 . 31 . . . 43 68 . . . . . . . 74 . . . . 79 . . . . . . 76 . . . . . . 89 . 89 . . 73 . 61 Volleys Fired 618 | 10 21 36 88 3 80 . 96 16 . 21 5 24 5 7 . 8 . 1 1 6 5 . 43 . . . 6 54 . 27 14 5 6 4 9 1 6 4 6 . . Largest 2 | 2 2 2 2 2 2 . 2 1 . 1 1 1 1 1 . 1 . 1 1 1 1 . 1 . . . 1 1 . 1 1 1 1 1 1 1 1 1 1 . . Hottest 250 | 60 46 53 79 48 120 . 100 250 . 120 120 120 120 120 . . . . . . 57 . 80 . . . 80 80 . 105 90 90 35 90 113 113 113 113 113 . . Shots Fired 882 | 20 42 69 165 6 108 . 188 16 . 21 6 24 5 6 . 8 . 1 1 6 5 . 43 . . . 6 54 . 27 14 5 6 4 9 1 6 4 6 . . Gun 601 | 20 42 68 158 6 72 . 188 8 . 8 1 . . . . . . . . . . . 24 . . . . . . . . . 6 . . . . . . . . Cannon 222 | . . . . . 35 . . 4 . 13 5 24 4 4 . . . . . . 2 . 6 . . . 5 49 . 27 14 5 . 1 7 1 6 4 6 . . Launcher 37 | . . 1 7 . 1 . . 4 . . . . . . . . . . . . . . 13 . . . 1 5 . . . . . 3 2 . . . . . . Special 22 | . . . . . . . . . . . . . 1 2 . 8 . 1 1 6 3 . . . . . . . . . . . . . . . . . . . . Kinetic 581 | 10 42 68 129 6 72 . 139 8 . 8 1 . . . . . . . . . 2 . 30 . . . 5 49 . 6 . . 6 . . . . . . . . Thermal 182 | 10 . . 18 . 35 . . 4 . 13 5 24 4 4 . . . . . . . . . . . . . . . 21 14 5 . 1 7 1 6 4 6 . . Explosive 28 | . . 1 2 . 1 . . . . . . . . . . . . . . . . . 13 . . . 1 5 . . . . . 3 2 . . . . . . Electromagnetic 69 | . . . 16 . . . 49 4 . . . . . . . . . . . . . . . . . . . . . . . . . . . . . . . . . Robot Hit Streak 36 | 6 8 7 19 2 30 . 36 4 . 6 3 6 7 1 . 2 . . 1 2 1 . 9 . . . . 3 . . 4 9 1 2 . . . . . . . Robot Miss Streak 8 | 1 2 8 2 1 1 . 4 3 . 3 . . . 1 . 2 . . . 1 2 . 3 . . . . . . . . . 5 . . . . . . . . Penetration Max 1 | . . . . . . . . . . . . . . . . . . . . . . . 1 . . . . . . . . . . . . . . . . . . Secondary Targets 2 | . . . 1 . . . 1 . . . . . . . . . . . . . . . . . . . . . . . . . . . . . . . . . . Max Gunslinging Chain 1 | . . . 1 . . . 1 . . . . . . . . . . . . . . . . . . . . . . . . . . . . . . . . . . Shots Hit Robots 1019 | 13 25 33 118 3 74 . 161 14 . 12 4 3 1 9 . 2 . . 1 3 1 . 59 13 . . 1 56 . 38 20 5 9 23 28 9 33 22 26 39 161 Core Hits 532 | 3 9 14 58 2 31 . 74 18 . 7 4 3 . 8 . . . . . . . . 54 5 . . 1 45 . 18 11 1 6 16 29 5 19 8 15 25 43 Critical Hits 71 | . . . . . 4 . . . . . 1 . . . . . . . . . . . 7 . . . . 5 . 3 4 . 1 2 5 . 1 7 5 6 20 Critical Kills 25 | . . . . . 1 . . . . . . . . . . . . . . . . . 4 . . . . 2 . . 3 . 1 1 1 . 1 2 4 4 1 Critical Parts Destroyed 40 | . . . . . 3 . . . . . 1 . . . . . . . . . . . 3 . . . . 3 . 3 1 . . 1 4 . . 5 1 1 14 Melee Attacks 929 | . . . . . . . 14 11 . 23 3 7 15 27 3 . . . . . . . 70 13 . . 3 117 . 78 28 . 9 26 67 31 53 37 50 61 183 Impact . | . . . . . . . . . . . . . . . . . . . . . . . . . . . . . . . . . . . . . . . . . . Slashing 574 | . . . . . . . 14 11 . 23 3 7 5 . . . . . . . . . 70 13 . . 3 33 . . . . . . 12 11 39 36 50 61 183 Piercing 355 | . . . . . . . . . . . . . 10 27 3 . . . . . . . . . . . . 84 . 78 28 . 9 26 55 20 14 1 . . . Sneak Attacks 213 | . . . . . . . 8 1 . 3 2 . . 5 . . . . . . . . 19 13 . . 1 42 . 16 6 . 5 7 14 3 10 6 14 30 8 Combat Hostiles 14 | . . . . . . . . . . . . . . . . . . . . . . . . . . . . 3 . . . . . . . 2 1 1 1 2 4 Follow-up Attacks 30 | . . . . . . . . . . . . . . . . . . . . . . . . . . . . . . . . . . . . . 2 . . 3 25 Damage Inflicted 77968 | 109 376 480 2141 34 2243 . 3630 929 . 680 445 206 . 652 . . . . . . . . 6619 1368 . . 108 6979 . 3572 1721 188 1012 2515 4268 798 3523 2998 5198 8541 16635 Guns 6826 | 109 376 435 1753 34 980 . 2464 100 . 79 . . . . . . . . . . . . 467 . . . . . . . . . 29 . . . . . . . . Cannons 2193 | . . . . . 1263 . . 109 . 141 169 206 . . . . . . . . . . . . . . . 46 . . 35 188 . 36 . . . . . . . Explosions 6399 | . . 45 388 . . . 277 515 . . . . . . . . . . . . . . 3147 . . . . 692 . . . . . 456 879 . . . . . . Melee 62550 | . . . . . . . 889 205 . 460 276 . . 652 . . . . . . . . 3005 1368 . . 108 6241 . 3572 1686 . 983 2023 3389 798 3523 2998 5198 8541 16635 Ramming . | . . . . . . . . . . . . . . . . . . . . . . . . . . . . . . . . . . . . . . . . . . Kinetic 5645 | 42 376 435 1434 34 980 . 1623 100 . 79 . . . . . . . . . . . . 467 . . . . 46 . . . . 29 . . . . . . . . Thermal 3426 | 67 . . 285 . 1263 . 277 284 . 141 169 206 . . . . . . . . . . 475 . . . . . . . 35 188 . 36 . . . . . . . Explosive 4330 | . . 45 123 . . . . 148 . . . . . . . . . . . . . . 2443 . . . . 692 . . . . . . 879 . . . . . . Electromagnetic 2017 | . . . 299 . . . 841 192 . . . . . . . . . . . . . . 229 . . . . . . . . . . 456 . . . . . . . Impact . | . . . . . . . . . . . . . . . . . . . . . . . . . . . . . . . . . . . . . . . . . . Slashing 44465 | . . . . . . . 889 205 . 460 276 . . . . . . . . . . . 3005 1368 . . 108 1354 . . . . . . 47 404 2977 2998 5198 8541 16635 Piercing 18085 | . . . . . . . . . . . . . . 652 . . . . . . . . . . . . . 4887 . 3572 1686 . 983 2023 3342 394 546 . . . . Highest Corruption 9 | . . . . . . . . 1 9 9 9 9 9 . . . . . . 3 1 1 5 5 5 5 . 3 . . . . . . 1 4 . 2 2 . . Average Corruption 3 | . . . . . . . . 1 3 9 9 9 9 . . . . . . 2 1 1 2 5 5 5 . 2 . . . . . . 1 1 . 1 2 . . Corruption Purged 3 | . . . . . . . . . . . . . . . . . . . . . . . . . . . . 3 . . . . . . . . . . . . . Effects 136 | . . . . . . . . 1 . 40 10 15 1 . . . . . . . . 3 27 3 1 1 . 18 . . . . . . 2 11 . 1 2 . . Message Errors 34 | . . . . . . . . 1 . 10 2 1 . . . . . . . . . 2 6 . 1 . . 6 . . . . . . . 4 . . 1 . . Matter Fused 30 | . . . . . . . . . . 9 4 5 . . . . . . . . . . 10 1 . . . 1 . . . . . . . . . . . . . Heat Flow Errors 13 | . . . . . . . . . . 3 . 3 . . . . . . . . . . 3 1 . . . 1 . . . . . . . 2 . . . . . Energy Discharges 16 | . . . . . . . . . . 5 1 1 . . . . . . . . . 1 3 . . 1 . 1 . . . . . . 1 1 . . 1 . . Parts Rejected 1 | . . . . . . . . . . . . . . . . . . . . . . . 1 . . . . . . . . . . . . . . . . . . Data Loss (minor) 19 | . . . . . . . . . . 7 2 . 1 . . . . . . . . . 1 . . . . 4 . . . . . . 1 2 . 1 . . . Data Loss (major) 4 | . . . . . . . . . . 1 . 2 . . . . . . . . . . . 1 . . . . . . . . . . . . . . . . . Misfires 1 | . . . . . . . . . . . 1 . . . . . . . . . . . . . . . . . . . . . . . . . . . . . . Targeting Errors 18 | . . . . . . . . . . 5 . 3 . . . . . . . . . . 3 . . . . 5 . . . . . . . 2 . . . . . Overload Shots . | . . . . . . . . . . . . . . . . . . . . . . . . . . . . . . . . . . . . . . . . . . Overflow Damage 11259 | . . . 6 . 35 . 192 143 . 25 56 17 . . . . . . . . . . 904 512 . . . 975 . 1022 480 . 315 456 502 104 811 518 788 1754 1644 Projectiles 52 | . . . . . 35 . . . . . . 17 . . . . . . . . . . . . . . . . . . . . . . . . . . . . . Explosions 622 | . . . 6 . . . . 137 . . . . . . . . . . . . . . 276 . . . . 108 . . . . . 54 41 . . . . . . Melee 10585 | . . . . . . . 192 6 . 25 56 . . . . . . . . . . . 628 512 . . . 867 . 1022 480 . 315 402 461 104 811 518 788 1754 1644 Knockbacks . | . . . . . . . . . . . . . . . . . . . . . . . . . . . . . . . . . . . . . . . . . . Impact . | . . . . . . . . . . . . . . . . . . . . . . . . . . . . . . . . . . . . . . . . . . Kinetic . | . . . . . . . . . . . . . . . . . . . . . . . . . . . . . . . . . . . . . . . . . . Secondary . | . . . . . . . . . . . . . . . . . . . . . . . . . . . . . . . . . . . . . . . . . . Self-Inflicted Damage 595 | . . . 71 . . . 53 261 . . . . . . . . . . . . . . 4 . . . 24 51 . . . . . 30 101 . . . . . . Shots 15 | . . . 3 . . . 2 4 . . . . . . . . . . . . . . 1 . . . 1 2 . . . . . 1 1 . . . . . . Rammed . | . . . . . . . . . . . . . . . . . . . . . . . . . . . . . . . . . . . . . . . . . . Targets Rammed . | . . . . . . . . . . . . . . . . . . . . . . . . . . . . . . . . . . . . . . . . . . Kicked . | . . . . . . . . . . . . . . . . . . . . . . . . . . . . . . . . . . . . . . . . . . Crushed . | . . . . . . . . . . . . . . . . . . . . . . . . . . . . . . . . . . . . . . . . . . Highest Temperature 427 | 60 1 . 132 8 188 . 213 216 . 256 154 427 222 234 . . . . . . . . 300 183 . . 32 248 30 319 222 325 36 200 206 333 265 . 183 . . Average Temperature 62 | 27 1 . 27 6 60 . 44 109 . 95 77 116 94 104 . . . . . . . . 87 94 . . 18 35 16 67 64 76 12 51 43 57 52 . 20 . . Received Heat Transfer 1847 | . 114 9 294 . . . 648 93 . 18 18 18 . 72 . . 18 . . 18 . . 90 . . . . 27 . 21 9 9 . 9 54 21 22 . 22 9 234 Effects 6 | . . . . . . . . . . . . 1 . . . . . . . . . . 4 . . . . . . . . . . . . . 1 . . . . Shutdowns 1 | . . . . . . . . . . . . 1 . . . . . . . . . . . . . . . . . . . . . . . . . . . . . Energy Bleed 2 | . . . . . . . . . . . . . . . . . . . . . . . 1 . . . . . . . . . . . . . 1 . . . . Interference 3 | . . . . . . . . . . . . . . . . . . . . . . . 3 . . . . . . . . . . . . . . . . . . Siege Activations . | . . . . . . . . . . . . . . . . . . . . . . . . . . . . . . . . . . . . . . . . . . Robots Corrupted 1 | . . . . . . . . . . . . . . . . . . . . . . . . . . . . . . . . . . 1 . . . . . . . Combat Hostiles . | . . . . . . . . . . . . . . . . . . . . . . . . . . . . . . . . . . . . . . . . . . Parts Fried 9 | . . . 1 . . . 1 1 . . 1 . . . . . . . . . . . 2 . . . . . . . . . . 3 . . . . . . . Impact Corruptions . | . . . . . . . . . . . . . . . . . . . . . . . . . . . . . . . . . . . . . . . . . . Robots Melted 2 | . . . . . 1 . . . . . . 1 . . . . . . . . . . . . . . . . . . . . . . . . . . . . . Combat Hostiles 1 | . . . . . . . . . . . . 1 . . . . . . . . . . . . . . . . . . . . . . . . . . . . . Parts Melted 18 | . . . 1 . 15 . . . . . . 1 . . . . . . . . . . . . . . . . . . . . . . . . . . . . 1 Heat Transferred 5983 | 150 . . 668 . 2800 . 350 390 . 320 400 480 . . . . . . . . . . 250 . . . . . . . 25 125 . 25 . . . . . . . Parts Sabotaged . | . . . . . . . . . . . . . . . . . . . . . . . . . . . . . . . . . . . . . . . . . . Parts Stolen . | . . . . . . . . . . . . . . . . . . . . . . . . . . . . . . . . . . . . . . . . . . Parts Stripped . | . . . . . . . . . . . . . . . . . . . . . . . . . . . . . . . . . . . . . . . . . . Power Chain Reactions 9 | . . . 5 . . . 4 . . . . . . . . . . . . . . . . . . . . . . . . . . . . . . . . . . Missiles Intercepted . | . . . . . . . . . . . . . . . . . . . . . . . . . . . . . . . . . . . . . . . . . . Alert | -11 -10 -10 -9 -9 -9 -8 -8 -7 -7 -7 -7 -7 -7 -7 -6 -6 -6 -6 -6 -5 -5 -5 -5 -5 -5 -5 -4 -4 -4 -4 -4 -4 -4 -4 -3 -3 -2 -2 -2 -1 -1 ------- Run | Scr Mat Min Mat Min Exi Min Mat Fac Was Fac Low Low Zio Dee Pro Fac Low Low Dat Pro Fac Was Fac Upp Upp War Pro Fac Was Fac Ext Cet Arc Hub Res Arm Res Qua Sec Acc Com Peak Influence 2178 | 5 118 80 360 172 . 12 298 1052 344 335 . . . . . 470 . . . . 407 217 1652 . . . . 630 153 699 586 430 422 939 1354 843 997 599 696 776 2178 Initial 710 | . 3 . 17 84 . . 4 135 329 240 . . . . . 28 . . . . 37 142 11 . . . . 21 108 107 342 319 172 147 433 710 442 497 141 417 268 Average 392 | . 54 12 172 52 . 2 162 336 334 220 . . . . . 77 . . . . 44 182 1004 . . . . 286 117 329 425 415 370 317 765 498 599 297 476 521 1467 Maximum Alert Level 5 | . . . 1 . . . 1 3 1 1 . . . . . 2 . . . . 2 1 5 . . . . 2 . 2 2 2 2 3 4 3 3 2 2 3 5 Low Security (%) 36 | 100 100 100 55 100 . 100 58 38 . 28 . . . . . 90 . . . . 97 39 5 . . . . 32 100 32 . . 3 13 . 19 12 9 7 . . Level 1 28 | . . . 44 . . . 41 44 100 71 . . . . . 9 . . . . . 60 5 . . . . 40 . 34 56 17 54 53 4 16 27 72 22 23 1 Level 2 18 | . . . . . . . . 1 . . . . . . . . . . . . 2 . 25 . . . . 26 . 33 43 82 42 28 23 37 9 17 69 59 11 Level 3 10 | . . . . . . . . 15 . . . . . . . . . . . . . . 15 . . . . . . . . . . 4 69 26 49 . . 17 26 Level 4 3 | . . . . . . . . . . . . . . . . . . . . . . . 44 . . . . . . . . . . . 2 . . . . . 4 Level 5 1 | . . . . . . . . . . . . . . . . . . . . . . . 3 . . . . . . . . . . . . . . . . . 42 High Security . | . . . . . . . . . . . . . . . . . . . . . . . . . . . . . . . . . . . . . . . . . 13 Max Security . | . . . . . . . . . . . . . . . . . . . . . . . . . . . . . . . . . . . . . . . . . . Squads Dispatched 80 | . 1 . 1 . . . 4 5 . 7 . . . . . 1 . . . 1 1 . 20 . . . . 5 . 4 1 . . 2 6 4 3 3 3 4 4 Investigation 16 | . 1 . 1 . . . 2 2 . 1 . . . . . 1 . . . . 1 . 2 . . . . 2 . 2 . . . . . . 1 . . . . Extermination 17 | . . . . . . . . 1 . 1 . . . . . . . . . . . . 4 . . . . 3 . . . . . . 2 2 . 1 2 . 1 Reinforcement 31 | . . . . . . . 2 2 . 5 . . . . . . . . . . . . 7 . . . . . . 1 1 . . 2 3 . 2 2 1 3 . Assault 16 | . . . . . . . . . . . . . . . . . . . . 1 . . 7 . . . . . . 1 . . . . 1 2 . . . 1 3 Garrison . | . . . . . . . . . . . . . . . . . . . . . . . . . . . . . . . . . . . . . . . . . . Intercept . | . . . . . . . . . . . . . . . . . . . . . . . . . . . . . . . . . . . . . . . . . . Construction Impeded 8 | . . . . . . . . 1 . . . . . . . . . . . . . . 4 . . . . . . . 1 . . 1 1 . . . . . . Haulers Reinforced 12 | . . . . . . . . . . 3 . . . . . . . . . . . . 1 . . . . . . 1 . . . 1 . . 1 1 1 3 . Stealth | -11 -10 -10 -9 -9 -9 -8 -8 -7 -7 -7 -7 -7 -7 -7 -6 -6 -6 -6 -6 -5 -5 -5 -5 -5 -5 -5 -4 -4 -4 -4 -4 -4 -4 -4 -3 -3 -2 -2 -2 -1 -1 --------- Run | Scr Mat Min Mat Min Exi Min Mat Fac Was Fac Low Low Zio Dee Pro Fac Low Low Dat Pro Fac Was Fac Upp Upp War Pro Fac Was Fac Ext Cet Arc Hub Res Arm Res Qua Sec Acc Com Distress Signals 37 | . . . 4 . . . . 1 . . . . . . . . . . . . 1 . 3 . . . . 1 . 2 1 1 . 1 3 3 8 1 2 1 4 Communications Jammed . | . . . . . . . . . . . . . . . . . . . . . . . . . . . . . . . . . . . . . . . . . . Distress Signals . | . . . . . . . . . . . . . . . . . . . . . . . . . . . . . . . . . . . . . . . . . . Times Spotted 684 | . 8 17 34 1 37 . 43 34 2 15 6 7 . 9 4 . 4 . . 16 5 2 74 . 2 6 3 20 1 25 14 5 6 28 45 30 42 9 31 11 88 Peak Tracking Total 17 | . 4 12 5 1 9 . 4 8 2 3 4 5 . 3 3 . 4 . . 12 7 2 14 . 1 7 2 6 1 9 4 5 1 17 13 12 9 3 5 7 14 Tactical Retreats 105 | . . 1 1 . 4 . 1 8 . 6 5 2 . . 1 . . . . 1 . . 16 . . . 1 6 . 8 . . . . 9 3 12 . 10 3 7 Traps | -11 -10 -10 -9 -9 -9 -8 -8 -7 -7 -7 -7 -7 -7 -7 -6 -6 -6 -6 -6 -5 -5 -5 -5 -5 -5 -5 -4 -4 -4 -4 -4 -4 -4 -4 -3 -3 -2 -2 -2 -1 -1 ------- Run | Scr Mat Min Mat Min Exi Min Mat Fac Was Fac Low Low Zio Dee Pro Fac Low Low Dat Pro Fac Was Fac Upp Upp War Pro Fac Was Fac Ext Cet Arc Hub Res Arm Res Qua Sec Acc Com Traps Triggered 27 | . . 2 3 . . . 1 2 . 1 . . . . . 2 . . . . 3 . 6 . . . . 2 . . 1 . . . 2 2 . . . . . Indirectly 1 | . . . . . . . . . . . . . . . . . . . . . . . 1 . . . . . . . . . . . . . . . . . . Trap Hack Attempts . | . . . . . . . . . . . . . . . . . . . . . . . . . . . . . . . . . . . . . . . . . . Triggered . | . . . . . . . . . . . . . . . . . . . . . . . . . . . . . . . . . . . . . . . . . . Disarmed . | . . . . . . . . . . . . . . . . . . . . . . . . . . . . . . . . . . . . . . . . . . Reprogrammed 4 | . . . . . . . . . . . . . . . . . . . . . . . 4 . . . . . . . . . . . . . . . . . . Reused 7 | . . . . . . . . . . . 3 . . . . . . . . . . . 4 . . . . . . . . . . . . . . . . . . Traps Extracted . | . . . . . . . . . . . . . . . . . . . . . . . . . . . . . . . . . . . . . . . . . . Installed 3 | . . . . . . . . . . . 3 . . . . . . . . . . . . . . . . . . . . . . . . . . . . . . Triggered 19 | . . . . . . . 1 1 . . 3 . . . . . . . . . . . 4 . . 10 . . . . . . . . . . . . . . . Exploded 3 | . . . . . 3 . . . . . . . . . . . . . . . . . . . . . . . . . . . . . . . . . . . . Machines | -11 -10 -10 -9 -9 -9 -8 -8 -7 -7 -7 -7 -7 -7 -7 -6 -6 -6 -6 -6 -5 -5 -5 -5 -5 -5 -5 -4 -4 -4 -4 -4 -4 -4 -4 -3 -3 -2 -2 -2 -1 -1 ---------- Run | Scr Mat Min Mat Min Exi Min Mat Fac Was Fac Low Low Zio Dee Pro Fac Low Low Dat Pro Fac Was Fac Upp Upp War Pro Fac Was Fac Ext Cet Arc Hub Res Arm Res Qua Sec Acc Com Machines Disabled 77 | . . . 4 . 3 . . 11 . . . . . 1 1 . . . . . . . 17 . . . . 9 . . . . 3 12 1 3 . 3 9 . . Max in Single Turn 10 | . . . 1 . 2 . . 5 . . . . . 1 1 . . . . . . . 4 . . . . 4 . . . . 1 10 1 1 . 1 1 . . Garrison Access 18 | . . . . . . . 1 . . 1 . . . . . 1 . . . . 1 . . . . . . 2 . 3 . . . . 1 . 2 1 1 4 . Network Hub 2 | . . . . . . . . . . . . . . . . . . . . . . . . . . . . . . . . . . 2 . . . . . . . Machines Sabotaged . | . . . . . . . . . . . . . . . . . . . . . . . . . . . . . . . . . . . . . . . . . . Garrisons Compromised . | . . . . . . . . . . . . . . . . . . . . . . . . . . . . . . . . . . . . . . . . . . Overloaded Fab Kills . | . . . . . . . . . . . . . . . . . . . . . . . . . . . . . . . . . . . . . . . . . . Fab Network Shutdowns 8 | . . . . . . . . 1 . . . . . . . 1 . . . . 1 . 1 . . . . . . 1 . . . . 1 1 1 . . . . Hacking | -11 -10 -10 -9 -9 -9 -8 -8 -7 -7 -7 -7 -7 -7 -7 -6 -6 -6 -6 -6 -5 -5 -5 -5 -5 -5 -5 -4 -4 -4 -4 -4 -4 -4 -4 -3 -3 -2 -2 -2 -1 -1 --------- Run | Scr Mat Min Mat Min Exi Min Mat Fac Was Fac Low Low Zio Dee Pro Fac Low Low Dat Pro Fac Was Fac Upp Upp War Pro Fac Was Fac Ext Cet Arc Hub Res Arm Res Qua Sec Acc Com Machines Accessed 228 | . 6 1 11 . 2 1 12 9 . 11 1 . . . . 11 . 1 4 . 6 . 11 . . 6 . 18 . 18 9 2 1 8 10 7 6 10 16 22 8 Terminals 154 | . 5 . 10 . . 1 8 6 . 7 . . . . . 5 . . . . 2 . 7 . . . . 13 . 11 9 2 . 8 7 4 4 7 14 16 8 Fabricators 16 | . . . . . . . . 1 . 2 . . . . . 2 . . . . 1 . 2 . . . . 2 . 2 . . . . 1 1 1 . . 1 . Repair Stations 18 | . 1 . 1 . . . 2 2 . 1 . . . . . 1 . . . . . . 2 . . . . 1 . 1 . . . . 1 2 . 2 1 . . Recycling Units 2 | . . . . . . . . . . . . . . . . 1 . . . . 1 . . . . . . . . . . . . . . . . . . . . Scanalyzers 5 | . . . . . . . 1 . . . . . . . . 1 . . . . 1 . . . . . . . . 1 . . . . . . . . . 1 . Garrison Access 17 | . . . . . . . 1 . . 1 . . . . . 1 . . . . 1 . . . . . . 2 . 3 . . . . 1 . 1 1 1 4 . Total Hacks 1141 | . 19 1 45 . 2 5 55 24 . 35 1 . . . . 48 . 1 27 . 23 . 89 . . 6 . 146 . 89 30 5 1 40 76 41 51 64 68 106 43 Successful 710 | . 10 1 23 . 2 3 41 15 . 18 1 . . . . 34 . 1 27 . 10 . 64 . . 6 . 74 . 57 20 5 1 28 44 31 45 36 46 47 20 Failed 428 | . 9 . 22 . . 2 13 9 . 17 . . . . . 13 . . . . 13 . 25 . . . . 72 . 32 10 . . 12 32 10 5 28 22 59 23 Catastrophic 58 | . . . 3 . . 1 . . . 1 . . . . . . . . . . 2 . . . . . . 12 . 8 1 . . 1 7 2 . 6 2 10 2 Database Lockouts 3 | . . . . . . . 1 . . . . . . . . 1 . . . . . . . . . . . . . . . . . . . . 1 . . . . Manual 529 | . 12 . 24 . 1 5 24 8 . 18 . . . . 1 23 . . . . 7 . 27 . . 1 . 75 . 45 18 1 . 27 46 18 32 30 33 26 27 Terminals 896 | . 17 . 42 . . 5 30 18 . 24 . . . . . 31 . . . . 5 . 67 . . . . 128 . 68 30 5 . 40 62 24 41 58 65 93 43 Fabricators 88 | . . . . . . . . 3 . 6 . . . . . 11 . . . . 12 . 12 . . . . 11 . 8 . . . . 8 5 9 . . 3 . Repair Stations 64 | . 2 . 3 . . . 13 3 . 2 . . . . . 2 . . . . . . 10 . . . . 4 . 2 . . . . 5 12 . 4 2 . . Recycling Units 2 | . . . . . . . . . . . . . . . . 1 . . . . 1 . . . . . . . . . . . . . . . . . . . . Scanalyzers 21 | . . . . . . . 11 . . . . . . . . 2 . . . . 1 . . . . . . . . 5 . . . . . . . . . 2 . Garrison Access 31 | . . . . . . . 1 . . 3 . . . . . 1 . . . . 4 . . . . . . 3 . 6 . . . . 1 . 1 2 1 8 . Terminal Hacks 357 | . 4 1 10 . 2 3 9 4 . 6 1 . . . . 11 . 1 27 . . . 32 . . 6 . 41 . 25 12 5 1 13 22 12 30 18 25 27 9 Record 36 | . . . . . 1 . . . . . . . . . . 2 . . 11 . . . . . . 5 . 1 . . 1 4 1 1 1 . . 4 . 2 2 Part Schematic 36 | . . . . . . . . . . . . . . . . 2 . . 7 . . . 5 . . . . 8 . 3 2 . . . 6 1 . 1 1 . . Robot Schematic 6 | . . . . . . . . . . . . . . . . . . . 6 . . . . . . . . . . . . . . . . . . . . . . Robot Analysis 2 | . . . . . . . . . . . . . . . . . . . . . . . . . . . . . . . . . . . . . . . . 2 . Prototype ID Bank 66 | . . . 4 . . 3 3 . . 1 . . . . . . . . 3 . . . 1 . . . . 4 . 5 2 . . 4 4 1 18 2 5 5 1 Open Door 18 | . . 1 . . . . . . . . 1 . . . . . . 1 . . . . . . . 1 . . . . 4 1 . . . . . . 5 3 1 Level Access Points 3 | . . . . . . . . . . . . . . . . . . . . . . . . . . . . . . . . . . 1 . 1 . . 1 . . Branch Access Points 10 | . . . 1 . . . 1 1 . . . . . . . 1 . . . . . . 1 . . . . 1 . 1 . . . . 1 . 1 . . 1 . Emergency Access Points 2 | . . . . . . . . . . . . . . . . . . . . . . . . . . . . . . . . . . . . . . . . 1 1 Machine Index 8 | . . . . . . . . . . . . . . . . 1 . . . . . . 1 . . . . . . 1 . . . 1 1 . . 1 . 1 1 Terminal Index 12 | . 1 . 1 . . . 1 . . 1 . . . . . . . . . . . . . . . . . 1 . 1 . . . 1 1 1 1 . 2 . . Fabricator Index 8 | . . . . . . . . . . . . . . . . . . . . . . . 1 . . . . 1 . 1 . . . . 1 1 1 1 1 . . Repair Station Index 7 | . . . . . . . 1 1 . . . . . . . . . . . . . . 1 . . . . 1 . . . . . . . 1 1 1 . . . Recycling Unit Index 2 | . . . . . . . . . . . . . . . . . . . . . . . . . . . . 1 . . . . . . . . . . 1 . . Garrison Index 6 | . . . . . . . . . . . . . . . . . . . . . . . . . . . . 1 . . 1 . . 1 . 1 . 1 1 . . Alert Level 12 | . . . . . . . . . . . . . . . . . . . . . . . 3 . . . . 2 . 2 . . . . 1 . 1 1 1 . 1 Unreport Threat 29 | . . . 1 . . . . . . . . . . . . . . . . . . . 6 . . . . 4 . 3 . . . 1 2 4 2 3 . 3 . Locate Traps 34 | . 2 . 2 . . . . . . 1 . . . . . 3 . . . . . . 5 . . . . 6 . 4 . . . . 1 1 3 . 1 5 . Reprogram Traps 1 | . . . . . . . . . . . . . . . . . . . . . . . 1 . . . . . . . . . . . . . . . . . . Extermination Status 2 | . . . . . . . . . . . . . . . . . . . . . . . . . . . . 2 . . . . . . . . . . . . . Recall Investigation 2 | . . . . . . . . . . . . . . . . . . . . . . . 1 . . . . . . 1 . . . . . . . . . . . Recall Extermination 4 | . . . . . . . . . . . . . . . . . . . . . . . 1 . . . . 3 . . . . . . . . . . . . . Recall Reinforcements 4 | . . . . . . . 1 . . . . . . . . . . . . . . . 1 . . . . 1 . . . . . . . . . . . 1 . Recall Assault 3 | . . . . . . . . . . . . . . . . . . . . . . . 2 . . . . . . . . . . . 1 . . . . . . Hauler Manifests 12 | . 1 . . . . . 1 1 . 1 . . . . . 1 . . . . . . 1 . . . . 1 . . . . . 1 1 . . 1 1 1 . Registered Components 1 | . . . . . . . . . . 1 . . . . . . . . . . . . . . . . . . . . . . . . . . . . . . . Registered Prototypes 1 | . . . . . . . . . . . . . . . . 1 . . . . . . . . . . . . . . . . . . . . . . . . . Zone Layout 27 | . . . 1 . . . 1 1 . 1 . . . . . . . . . . . . 1 . . . . 3 . 3 2 . . 2 1 . 2 2 5 2 . EX-Prototype ID Bank 1 | . . . . . 1 . . . . . . . . . . . . . . . . . . . . . . . . . . . . . . . . . . . . Disengage Seal 2 | . . . . . . . . . . . . . . . . . . . . . . . . . . . . . . . . . . . . . . . . . 2 Fabricator Hacks 47 | . . . . . . . . 2 . 2 . . . . . 6 . . . . 6 . 6 . . . . 5 . 6 . . . . 5 2 5 . . 2 . Network Status 1 | . . . . . . . . . . . . . . . . . . . . . . . . . . . . 1 . . . . . . . . . . . . . Load Schematic 22 | . . . . . . . . 1 . 1 . . . . . 3 . . . . 3 . 3 . . . . 2 . 3 . . . . 2 1 2 . . 1 . Build 24 | . . . . . . . . 1 . 1 . . . . . 3 . . . . 3 . 3 . . . . 2 . 3 . . . . 3 1 3 . . 1 . Repair Station Hacks 47 | . 2 . 2 . . . 7 2 . . . . . . . 2 . . . . . . 8 . . . . 2 . 2 . . . . 4 10 . 4 2 . . Scan Component 24 | . 1 . 1 . . . 4 1 . . . . . . . 1 . . . . . . 4 . . . . 1 . 1 . . . . 2 5 . 2 1 . . Repair 23 | . 1 . 1 . . . 3 1 . . . . . . . 1 . . . . . . 4 . . . . 1 . 1 . . . . 2 5 . 2 1 . . Recycling Unit Hacks . | . . . . . . . . . . . . . . . . . . . . . . . . . . . . . . . . . . . . . . . . . . Scanalyzer 20 | . . . . . . . 10 . . . . . . . . 2 . . . . 1 . . . . . . . . 5 . . . . . . . . . 2 . Insert Component 10 | . . . . . . . 5 . . . . . . . . 1 . . . . 1 . . . . . . . . 2 . . . . . . . . . 1 . Analyze 10 | . . . . . . . 5 . . . . . . . . 1 . . . . . . . . . . . . . 3 . . . . . . . . . 1 . Garrison Access Hacks 15 | . . . . . . . 1 . . 1 . . . . . 1 . . . . 1 . . . . . . 1 . 2 . . . . 1 . 1 1 1 4 . Seal Access 15 | . . . . . . . 1 . . 1 . . . . . 1 . . . . 1 . . . . . . 1 . 2 . . . . 1 . 1 1 1 4 . Unauthorized Hacks 224 | . 4 . 11 . . . 14 7 . 9 . . . . . 12 . . . . 2 . 18 . . . . 25 . 17 8 . . 15 12 7 9 13 18 12 11 Terminals 197 | . 4 . 11 . . . 14 6 . 7 . . . . . 7 . . . . . . 15 . . . . 20 . 14 8 . . 15 9 6 7 13 18 12 11 Track 85 | . 3 . 7 . . . 6 4 . 4 . . . . . 2 . . . . . . 7 . . . . 10 . 5 2 . . 5 4 3 2 5 7 4 5 Assimilate 21 | . 1 . 1 . . . . . . . . . . . . . . . . . . . . . . . . . . 3 3 . . 4 1 . 1 2 1 3 1 Botnet 70 | . . . 2 . . . 8 2 . 3 . . . . . 3 . . . . . . 5 . . . . 7 . 4 2 . . 5 4 2 3 6 5 5 4 Detonate 2 | . . . . . . . . . . . . . . . . . . . . . . . 1 . . . . . . . . . . 1 . . . . . . . Disrupt 13 | . . . . . . . . . . . . . . . . . . . . . . . 2 . . . . 2 . 1 1 . . . . 1 1 . 4 . 1 Operators 6 | . . . 1 . . . . . . . . . . . . 2 . . . . . . . . . . . 1 . 1 . . . . . . . . 1 . . Fabricators 23 | . . . . . . . . 1 . 2 . . . . . 4 . . . . 1 . 3 . . . . 4 . 2 . . . . 3 1 2 . . . . Report 2 | . . . . . . . . . . . . . . . . . . . . . . . . . . . . 1 . . . . . . 1 . . . . . . Prioritize 8 | . . . . . . . . . . 1 . . . . . 2 . . . . . . 1 . . . . 1 . 1 . . . . 1 . 1 . . . . Siphon 13 | . . . . . . . . 1 . 1 . . . . . 2 . . . . 1 . 2 . . . . 2 . 1 . . . . 1 1 1 . . . . Repair Stations . | . . . . . . . . . . . . . . . . . . . . . . . . . . . . . . . . . . . . . . . . . . Recycling Units 2 | . . . . . . . . . . . . . . . . 1 . . . . 1 . . . . . . . . . . . . . . . . . . . . Mask 2 | . . . . . . . . . . . . . . . . 1 . . . . 1 . . . . . . . . . . . . . . . . . . . . Scanalyzers . | . . . . . . . . . . . . . . . . . . . . . . . . . . . . . . . . . . . . . . . . . . Garrison Access 2 | . . . . . . . . . . . . . . . . . . . . . . . . . . . . 1 . 1 . . . . . . . . . . . Jam 2 | . . . . . . . . . . . . . . . . . . . . . . . . . . . . 1 . 1 . . . . . . . . . . . Data Cores Recovered 2 | . . . . . . . . . . . . . . . . . . . . . . . . . . . . . . . . . . . . . . . 1 . 1 Used 1 | . . . . . . . . . . . . . . . . . . . . . . . . . . . . . . . . . . . . . . . . . 1 Hacking Detections 127 | . 6 . 11 . . 1 5 8 . 9 . . . . . 6 . . . . 2 . 6 . . . . 12 . 11 5 . . 4 9 5 4 6 5 8 4 Full Trace Events 6 | . 1 . . . . . . 1 . . . . . . . 1 . . . . 1 . . . . . . . . 1 . . . . . . 1 . . . . Feedback Events 1 | . . . . . . . . . . . . . . . . . . . . . . . . . . . . . . 1 . . . . . . . . . . . Hackware Fried 1 | . . . . . . . . . . . . . . . . . . . . . . . . . . . . . . 1 . . . . . . . . . . . Feedback Blocked . | . . . . . . . . . . . . . . . . . . . . . . . . . . . . . . . . . . . . . . . . . . Robot Schematics Acquired 6 | . . . . . . . . . . . . . . . . . . . 6 . . . . . . . . . . . . . . . . . . . . . . Robots Built . | . . . . . . . . . . . . . . . . . . . . . . . . . . . . . . . . . . . . . . . . . . Matter . | . . . . . . . . . . . . . . . . . . . . . . . . . . . . . . . . . . . . . . . . . . Time . | . . . . . . . . . . . . . . . . . . . . . . . . . . . . . . . . . . . . . . . . . . Total Robot Build Rating . | . . . . . . . . . . . . . . . . . . . . . . . . . . . . . . . . . . . . . . . . . . Part Schematics Acquired 42 | . . . . . . . 5 . . . . . . . . 3 . . 7 . . . 5 . . . . 7 . 5 2 . . . 4 1 . 1 1 1 . Parts Built 25 | . . . . . . . . 1 . 1 . . . . . 5 . . . . 3 . 3 . . . . 2 . 2 . . . . 3 1 3 . . 1 . Matter 5952 | . . . . . . . . 213 . 238 . . . . . 481 . . . . 709 . 664 . . . . 422 . 888 . . . . 936 288 696 . . 417 . Time 1799 | . . . . . . . . 152 . 84 . . . . . 165 . . . . 246 . 236 . . . . 146 . 384 . . . . 165 68 79 . . 74 . Total Part Build Rating 170 | . . . . . . . . 5 . 6 . . . . . 23 . . . . 22 . 16 . . . . 13 . 16 . . . . 27 8 25 . . 9 . Parts Repaired 23 | . 1 . 1 . . . 3 1 . . . . . . . 1 . . . . . . 4 . . . . 1 . 1 . . . . 2 5 . 2 1 . . Time 1049 | . 32 . 26 . . . 157 19 . . . . . . . 80 . . . . . . 247 . . . . 40 . 44 . . . . 62 171 . 134 37 . . Parts Recycled . | . . . . . . . . . . . . . . . . . . . . . . . . . . . . . . . . . . . . . . . . . . Recycled Matter . | . . . . . . . . . . . . . . . . . . . . . . . . . . . . . . . . . . . . . . . . . . Retrieved Matter . | . . . . . . . . . . . . . . . . . . . . . . . . . . . . . . . . . . . . . . . . . . Retrieved Components . | . . . . . . . . . . . . . . . . . . . . . . . . . . . . . . . . . . . . . . . . . . Parts Scanalyzed 9 | . . . . . . . 5 . . . . . . . . 1 . . . . . . . . . . . . . 2 . . . . . . . . . 1 . Part Schematics Acquired 9 | . . . . . . . 5 . . . . . . . . 1 . . . . . . . . . . . . . 2 . . . . . . . . . 1 . Parts Damaged 2 | . . . . . . . 2 . . . . . . . . . . . . . . . . . . . . . . . . . . . . . . . . . . Bothacking | -11 -10 -10 -9 -9 -9 -8 -8 -7 -7 -7 -7 -7 -7 -7 -6 -6 -6 -6 -6 -5 -5 -5 -5 -5 -5 -5 -4 -4 -4 -4 -4 -4 -4 -4 -3 -3 -2 -2 -2 -1 -1 ------------ Run | Scr Mat Min Mat Min Exi Min Mat Fac Was Fac Low Low Zio Dee Pro Fac Low Low Dat Pro Fac Was Fac Upp Upp War Pro Fac Was Fac Ext Cet Arc Hub Res Arm Res Qua Sec Acc Com Used RIF Installer . | . . . . . . . . . . . . . . . . . . . . . . . . . . . . . . . . . . . . . . . . . . Robots Hacked . | . . . . . . . . . . . . . . . . . . . . . . . . . . . . . . . . . . . . . . . . . . Non-combat . | . . . . . . . . . . . . . . . . . . . . . . . . . . . . . . . . . . . . . . . . . . Combat . | . . . . . . . . . . . . . . . . . . . . . . . . . . . . . . . . . . . . . . . . . . Robot Hacks Applied . | . . . . . . . . . . . . . . . . . . . . . . . . . . . . . . . . . . . . . . . . . . Relay Couplers Released 2 | . . . . . . . . . . . . . . . . . . . . . . . . . . . . . . . . . . . . . 2 . . . . Machine Destruction 2 | . . . . . . . . . . . . . . . . . . . . . . . . . . . . . . . . . . . . . 2 . . . . Robots Rewired 11 | . . . . . . . . . . . . . . . . . . . . . . . . . . . . . . . 7 . . . . 4 . . . . . Allies Hacked . | . . . . . . . . . . . . . . . . . . . . . . . . . . . . . . . . . . . . . . . . . . Hacks Repelled 2 | . . . . . . . . . . . . . . . . . . . . . . . 1 . . . . . . . . . . . . 1 . . . . . Allies | -11 -10 -10 -9 -9 -9 -8 -8 -7 -7 -7 -7 -7 -7 -7 -6 -6 -6 -6 -6 -5 -5 -5 -5 -5 -5 -5 -4 -4 -4 -4 -4 -4 -4 -4 -3 -3 -2 -2 -2 -1 -1 -------- Run | Scr Mat Min Mat Min Exi Min Mat Fac Was Fac Low Low Zio Dee Pro Fac Low Low Dat Pro Fac Was Fac Upp Upp War Pro Fac Was Fac Ext Cet Arc Hub Res Arm Res Qua Sec Acc Com Total Allies 138 | . . . 1 3 . . . . . . . . 1 2 . . . . 1 1 . 19 3 . . . . . . 3 16 5 . 4 1 4 1 2 1 2 68 Largest Group 24 | . . . 1 3 2 . . . . . . . 1 2 . . . . 1 2 . 19 14 . . . . . . 1 14 11 11 13 1 4 1 2 1 1 24 Highest-Rated Group 783 | . . . 10 71 40 . . . . . . . 30 188 . . . . 59 100 . 714 553 . . . . . . 44 547 783 783 669 26 200 10 70 44 44 756 Highest-Rated Ally 243 | . . . 10 31 31 . . . . . . . 30 118 . . . . 59 59 . 50 50 . . . . . . 44 156 156 156 94 26 50 10 44 44 44 243 Total Orders 42 | . . . . . . . . . . . . . . 3 . . . . . 1 . . . . . . . . . . 6 6 6 10 7 3 . . . . . STAY 24 | . . . . . . . . . . . . . . 2 . . . . . 1 . . . . . . . . . . 3 3 3 6 4 2 . . . . . FOLLOW 18 | . . . . . . . . . . . . . . 1 . . . . . . . . . . . . . . . . 3 3 3 4 3 1 . . . . . Ally Attacks 895 | . . . . 7 . . . . . . . . 1 38 . . . . . 5 . 96 104 . . . . . . . 50 38 26 55 16 30 . . . . 429 Total Damage 28002 | . . . . 150 . . . . . . . . 24 1191 . . . . . 100 . 3559 3465 . . . . . . . 931 1102 978 1954 784 1297 . . . . 12467 Kills 137 | . . . . 3 . . . . . . . . 1 9 . . . . . 1 . 10 31 . . . . . . . 8 4 4 4 5 5 . . . . 52 Allies Corrupted 11 | . . . . . . . . . . . . . . . . . . . . . . . . . . . . . . . . . . 4 . 3 . . . . 4 Allies Melted 2 | . . 1 . . . . . . . . . . . . . . . . . . . . . . . . . . . . . . . . . . 1 . . . . Turrets Deployed 1 | . . . . . . . . . . . . . . . . . . . . . . . . . . . . . . . . . . . 1 . . . . . . Field Lobotomies 4 | . . . . . . . . . . . . . 1 1 . . . . 1 1 . . . . . . . . . . . . . . . . . . . . . Intel | -11 -10 -10 -9 -9 -9 -8 -8 -7 -7 -7 -7 -7 -7 -7 -6 -6 -6 -6 -6 -5 -5 -5 -5 -5 -5 -5 -4 -4 -4 -4 -4 -4 -4 -4 -3 -3 -2 -2 -2 -1 -1 ------- Run | Scr Mat Min Mat Min Exi Min Mat Fac Was Fac Low Low Zio Dee Pro Fac Low Low Dat Pro Fac Was Fac Upp Upp War Pro Fac Was Fac Ext Cet Arc Hub Res Arm Res Qua Sec Acc Com Robot Analysis Total 2 | . . . . . . . . . . . . . . . . . . . . . . . . . . . . . . . . . . . . . . . . 2 . Derelict Logs Recovered 11 | . . 1 . 3 . . . . . . 1 . 2 . . . 1 1 . 1 . . . . . . 1 . . . . . . . . . . . . . . Drone Launches . | . . . . . . . . . . . . . . . . . . . . . . . . . . . . . . . . . . . . . . . . . . Drone Recoveries . | . . . . . . . . . . . . . . . . . . . . . . . . . . . . . . . . . . . . . . . . . . Exploration | -11 -10 -10 -9 -9 -9 -8 -8 -7 -7 -7 -7 -7 -7 -7 -6 -6 -6 -6 -6 -5 -5 -5 -5 -5 -5 -5 -4 -4 -4 -4 -4 -4 -4 -4 -3 -3 -2 -2 -2 -1 -1 ------------- Run | Scr Mat Min Mat Min Exi Min Mat Fac Was Fac Low Low Zio Dee Pro Fac Low Low Dat Pro Fac Was Fac Upp Upp War Pro Fac Was Fac Ext Cet Arc Hub Res Arm Res Qua Sec Acc Com Turns Passed 30899 | 79 463 1110 1723 1153 3490 128 1919 1206 21 1003 431 426 609 1005 143 440 328 262 71 330 506 440 1891 102 45 329 220 1988 11 1050 622 256 177 537 1030 776 1218 504 1191 869 797 Spaces Moved 41642 | 47 354 779 920 631 1589 63 802 1568 59 1456 760 648 1241 1487 318 713 413 456 116 314 781 422 2029 235 177 429 474 2667 65 1828 680 302 324 1331 1845 1219 3694 1336 2744 2659 1667 Core 908 | 8 . . . . . . . 144 . . . . . . . . . . . . 166 305 189 . . 1 . . . . 22 . . . . 35 . . 38 . . Treads 3171 | . . 2 415 631 1589 63 471 . . . . . . . . . . . . . . . . . . . . . . . . . . . . . . . . . . Legs . | . . . . . . . . . . . . . . . . . . . . . . . . . . . . . . . . . . . . . . . . . . Wheels 2006 | 39 354 777 505 . . . 331 . . . . . . . . . . . . . . . . . . . . . . . . . . . . . . . . . . Hover 5514 | . . . . . . . . . . . . . . 1259 318 713 413 456 116 314 615 117 1193 . . . . . . . . . . . . . . . . . . Flight 30043 | . . . . . . . . 1424 59 1456 760 648 1241 228 . . . . . . . . 647 235 177 428 474 2667 65 1828 658 302 324 1331 1845 1184 3694 1336 2706 2659 1667 Fastest Speed 8 | 50 90 90 100 180 180 200 130 29 35 27 30 30 30 26 26 26 26 28 52 30 25 25 14 29 14 12 12 12 12 12 8 25 25 12 8 13 10 8 10 10 10 Average Speed 43 | 81 94 100 136 180 199 200 183 40 35 33 30 30 30 48 32 51 54 55 52 75 51 80 49 29 25 26 23 24 16 22 26 25 25 15 15 19 17 16 12 10 10 Slowest Speed 700 | 90 100 160 180 180 220 220 270 300 35 35 32 30 30 105 56 52 88 56 52 116 100 120 150 29 29 700 25 25 25 25 100 25 25 25 25 100 27 20 86 10 10 Overloaded Moves 38 | . . . . . . . . . . 6 . . . . . . . . . . . . . . . . . . . . 7 . . . 7 . . 18 . . . Propulsion Burnouts . | . . . . . . . . . . . . . . . . . . . . . . . . . . . . . . . . . . . . . . . . . . Robots Hopped 157 | . . . . . . . . 21 . 7 . . . . . . . . . . . . 3 . . . . 17 . 2 7 . 1 33 18 4 8 3 6 12 15 Cave-ins Triggered 3 | . . . . . . . . . . . . . . . . . . . . . . . . . . . . . . . . . . . . . . . 2 . 1 Exploration Rate (%) 59 | 4 61 99 67 92 90 16 57 35 63 34 75 71 78 82 60 15 60 57 74 55 22 95 41 59 46 61 68 50 75 46 67 80 96 64 32 47 36 77 88 55 44 Regions Visited 41 Branch Regions 25 Pre-discovered Areas 3 | . . . . 1 1 . . . . . . . . . . . . . 1 . . . . . . . . . . . . . . . . . . . . . . Known Exits Taken 28 | . . . 1 . . . . . . 1 1 1 1 1 1 1 1 1 1 1 . . 1 1 1 1 1 . . 1 1 1 1 1 1 1 1 1 1 1 . Unknown Exits Taken 7 | 1 1 1 . 1 1 1 1 . . . . . . . . . . . . . . . . . . . . . . . . . . . . . . . . . . Scrap Searched 21 | . . 3 . 1 . 1 . . . . 3 3 3 . . . . 1 . 1 . . . . 1 . 4 . . . . . . . . . . . . . . Spaces Dug 460 | . . . . . . . 5 34 . 18 . 9 3 7 1 . . . . . 1 . 97 . . . 27 78 . 50 7 . . 2 40 11 18 13 19 17 3 Terrain Destroyed 1323 | . . 4 27 . 6 . 24 108 . 26 . 25 3 10 1 . . . . . 1 . 238 . . . 27 200 . 61 16 . . 364 96 12 22 13 19 17 3 Melee 264 | . . . . . . . 5 7 . 17 . 7 2 6 1 . . . . . . . 21 . . . 2 52 . 34 3 . . 2 35 11 16 9 14 17 3 Projectile 158 | . . . . . . . . . . 9 . 18 1 4 . . . . . . 1 . 4 . . . 7 51 . 27 13 . . . 7 1 6 4 5 . . AOE 901 | . . 4 27 . 6 . 19 101 . . . . . . . . . . . . . . 213 . . . 18 97 . . . . . 362 54 . . . . . . Terrain Rammed . | . . . . . . . . . . . . . . . . . . . . . . . . . . . . . . . . . . . . . . . . . . Walls Destroyed . | . . . . . . . . . . . . . . . . . . . . . . . . . . . . . . . . . . . . . . . . . . Machines Disabled . | . . . . . . . . . . . . . . . . . . . . . . . . . . . . . . . . . . . . . . . . . . Actions | -11 -10 -10 -9 -9 -9 -8 -8 -7 -7 -7 -7 -7 -7 -7 -6 -6 -6 -6 -6 -5 -5 -5 -5 -5 -5 -5 -4 -4 -4 -4 -4 -4 -4 -4 -3 -3 -2 -2 -2 -1 -1 --------- Run | Scr Mat Min Mat Min Exi Min Mat Fac Was Fac Low Low Zio Dee Pro Fac Low Low Dat Pro Fac Was Fac Upp Upp War Pro Fac Was Fac Ext Cet Arc Hub Res Arm Res Qua Sec Acc Com Total 51659 | 66 439 1036 1235 643 1803 65 1033 2087 58 1914 951 844 1442 1705 351 768 514 464 124 394 873 522 2738 248 176 643 568 3716 64 2279 1042 472 396 1573 2413 1698 4167 1549 3458 3141 1987 Wait 7356 | . 46 184 128 7 52 . 52 450 . 389 171 165 171 141 20 33 100 . 6 66 60 86 505 . . 189 76 848 . 293 251 158 50 231 443 406 344 116 542 403 174 Move 41318 | 46 353 778 919 630 1588 62 801 1527 58 1441 759 647 1240 1486 317 712 412 455 115 313 781 421 2022 234 176 428 473 2638 64 1823 667 301 321 1275 1809 1210 3682 1329 2729 2638 1638 Hop 125 | . . . . . . . . 20 . 7 . . . . . . . . . . . . 3 . . . . 12 . 2 5 . 1 22 17 4 3 3 6 8 12 Pick Up 329 | 4 8 19 34 1 31 1 20 9 . 3 4 1 . 8 3 7 . 2 . 2 10 6 21 . . 11 1 8 . 11 3 1 3 3 15 9 25 18 20 7 . Fast Attach 92 | 6 3 . 3 . . . 6 6 . 6 . . 5 7 . . . 1 . . 1 . 8 . . 1 . 4 . 3 . . . . 6 6 1 1 13 5 . Attach 168 | . 1 8 8 . 7 . 6 8 . 6 1 . . 4 2 3 . 2 . 2 11 4 16 . . 2 . 2 . 4 3 . 2 2 8 3 8 10 20 9 6 Detach 33 | . . . . . . . . 1 . 6 . . . . . . . 1 1 2 2 . 4 . . . . . . . . . . 1 1 . . . 9 5 . Swap 385 | . 2 7 27 1 23 1 20 16 . 5 1 . 1 11 2 2 2 1 1 3 2 3 38 1 . 3 8 24 . 24 4 7 . 6 29 12 34 15 39 3 7 Drop 273 | . 5 4 28 1 22 1 18 23 . 7 4 . 5 14 4 3 . 1 . . 1 2 8 . . 9 1 9 . 14 3 . 4 3 9 8 15 17 22 8 . Fire 618 | 10 21 36 88 3 80 . 96 16 . 21 5 24 5 7 . 8 . 1 1 6 5 . 43 . . . 6 54 . 27 14 5 6 4 9 1 6 4 6 . . Melee 878 | . . . . . . . 14 11 . 23 3 7 15 27 3 . . . . . . . 70 13 . . 3 117 . 78 28 . 9 26 67 26 49 36 50 54 149 Ram . | . . . . . . . . . . . . . . . . . . . . . . . . . . . . . . . . . . . . . . . . . . Kick . | . . . . . . . . . . . . . . . . . . . . . . . . . . . . . . . . . . . . . . . . . . Crush . | . . . . . . . . . . . . . . . . . . . . . . . . . . . . . . . . . . . . . . . . . . Escape Stasis 22 | . . . . . . . . . . . . . . . . . . . . . . . . . . . . . . . 18 . . . . . . . 2 1 1 Rewire 59 | . . . . . . . . . . . . . . . . . . . . . . . . . . . . . . . 46 . . . . 13 . . . . . Trap 3 | . . . . . . . . . . . 3 . . . . . . . . . . . . . . . . . . . . . . . . . . . . . . Miscellaneous . | . . . . . . . . . . . . . . . . . . . . . . . . . . . . . . . . . . . . . . . . . . Route ------- -11/Scrapyard -10/Materials (discovered 3 exits: *Mat x2 / *Min) -10/Mines (discovered 2 exits: *Mat x2) -9/Materials (discovered 2 exits: *Mat / *Min) -9/Mines (discovered 2 exits: *Mat / *Exi) -9/Exiles -8/Mines -8/Materials (discovered 2 exits: *Fac x2) -7/Factory (discovered 4 exits: *Fac / *Sto / Low x2) -7/Waste -7/Factory (discovered 5 exits: *Fac x2 / *Sto / *Low x2) -7/Lower Caves -7/Lower Caves (discovered 2 exits: *Fac / *Zio) -7/Zion (discovered 2 exits: *Dee / [*Pro]) -7/Deep Caves -6/Proximity Caves -6/Factory (discovered 2 exits: *Low x2) -6/Lower Caves -6/Lower Caves (discovered 2 exits: *Fac / *Dat) -6/Data Miner -5/Proximity Caves -5/Factory -5/Waste -5/Factory (discovered 2 exits: *Upp x2) -5/Upper Caves -5/Upper Caves (discovered 2 exits: *Fac / *War) -5/Warlord -4/Proximity Caves -4/Factory (discovered 4 exits: Upp x2 / *Ext x2) -4/Waste -4/Factory (discovered 5 exits: *Res / Upp x2 / *Ext x2) -4/Extension (discovered 2 exits: *Res / *Cet) -4/Cetus -4/Archives (discovered 3 exits: *Res / *Hub x2) -4/Hub_04(d) (discovered 4 exits: *Res x4) -3/Research (discovered 4 exits: *Res / *Arm / *Tes x2) -3/Armory (discovered 2 exits: *Res x2) -2/Research (discovered 2 exits: *Qua x2) -2/Quarantine (discovered 2 exits: *Acc / *Sec) -2/Section 7 -1/Access -1/Command To Fleet Rendezvous History --------- Turn | Location | Event 16 | -11/Scrapyard | Discovered new exit (range 15) 80 | -11/Scrapyard | Entered Materials 155 | -10/Materials | Discovered new exit (range 13) 270 | -10/Materials | Discovered new exit (range 6) 349 | -10/Materials | Build established: Mutant 350 | -10/Materials | Discovered new exit (range 11) 486 | -10/Materials | Repaired Hvy. Assault Rifle 543 | -10/Materials | Entered Mines 544 | -10/Mines | Assembled infested the area 549 | -10/Mines | Assisted by a Guerilla fighting off Assembled 633 | -10/Mines | Core integrity fell below 50% 667 | -10/Mines | Lost 6 parts (1p3n2w) 734 | -10/Mines | Discovered new exit (range 8) 752 | -10/Mines | Learned Materials security intel 903 | -10/Mines | Met a Derelict who couldn't figure out how to use a Trap Extractor 1046 | -10/Mines | Discovered new exit (range 5) 1420 | -10/Mines | Met a Derelict testing a Signal Generator 1430 | -10/Mines | Found Signal Generator 1653 | -10/Mines | Entered Materials 1653 | -9/Materials | Evolved 2 slots: Utility x2 1817 | -9/Materials | Repaired Lgt. Armor Plating 2136 | -9/Materials | Identified exit to Mines 2169 | -9/Materials | Discovered new exit (range 3) 2439 | -9/Materials | Build established: Hauler-Mutant 3376 | -9/Materials | Entered Mines 3392 | -9/Mines | Learned Materials stockpile data 3497 | -9/Mines | Discovered new exit (range 11) 3533 | -9/Mines | Deemed a non-threat by the Exiles lab entrance 3535 | -9/Mines | Discovered new exit (range 5) 3602 | -9/Mines | Learned location of Zion (-7) 3980 | -9/Mines | Received a Mining Laser from a helpful Derelict 3988 | -9/Mines | Learned Materials garrison access intel 4169 | -9/Mines | Found a damaged Exp. Sensor Array with a note attached 4174 | -9/Mines | Found Prototype Device 4175 | -9/Mines | Identified Exp. Sensor Array 4323 | -9/Mines | Received a Rocket Launcher from a helpful Derelict 4529 | -9/Mines | Entered Exiles 4529 | -9/Exiles | Accompanied by 2 allies 4559 | -9/Exiles | Led the pair of lost Derelicts to a safe place 4574 | -9/Exiles | Met 8R-AWN 4603 | -9/Exiles | Met EX-HEX 4738 | -9/Exiles | Met EX-DEC 4945 | -9/Exiles | Met EX-BIN 4965 | -9/Exiles | Aligned with FarCom system 4966 | -9/Exiles | Given EX-Vault access code 5010 | -9/Exiles | Opened EX-Vault 5025 | -9/Exiles | Found Field Lobotomy Kit 5030 | -9/Exiles | Found Firepult 5033 | -9/Exiles | Found Gui. Plasma Cannon 5080 | -9/Exiles | Warned to stay clear of 0b10 Research branches 5248 | -9/Exiles | Discovered new exit (range 14) 6381 | -9/Exiles | Attacked by the Exiles 6544 | -9/Exiles | Core integrity fell below 50% 6546 | -9/Exiles | Lost 3 parts (1p1n1w) 6563 | -9/Exiles | Destroyed 8R-AWN 6576 | -9/Exiles | Found Prototype Processor 6577 | -9/Exiles | Identified Exp. Targeting Computer 6598 | -9/Exiles | Found Prototype Device 6599 | -9/Exiles | Identified AS-neutralizer No. 17b 6920 | -9/Exiles | Destroyed EX-HEX 6948 | -9/Exiles | Destroyed EX-BIN 6978 | -9/Exiles | Destroyed EX-DEC 7776 | -9/Exiles | Found Deploy-a-Sentry 8019 | -9/Exiles | Stole four prototypes: Gui. Plasma Cannon, Firepult, Field Lobotomy Kit, Deploy-a-Sentry 8019 | -9/Exiles | Entered Mines 8109 | -8/Mines | Discovered new exit (range 5) 8147 | -8/Mines | Entered Materials 8147 | -8/Materials | Evolved 2 slots: Utility x2 8149 | -8/Materials | Loaded intel: 1 garrison access location 9187 | -8/Materials | Discovered new exit (range 16) 9635 | -8/Materials | Repaired Broken Exp. Sensor Array? 9672 | -8/Materials | Central database locked down 9705 | -8/Materials | Repaired Broken Exp. Heat Sink 9858 | -8/Materials | Discovered new exit (range 16) 9964 | -8/Materials | Repaired Imp. Assault Rifle? 10066 | -8/Materials | Entered Factory 10066 | -7/Factory | Evolved 2 slots: Propulsion x1, Utility x1 10588 | -7/Factory | Discovered new exit (range 9) 10635 | -7/Factory | Identified exit to Factory 10692 | -7/Factory | Identified exit to Storage 10692 | -7/Factory | Identified exit to Lower Caves 10970 | -7/Factory | Lost 4 parts (2n1u1w) 11047 | -7/Factory | Build established: Hacker-Mutant 11064 | -7/Factory | Local fabrication network quarantined 11128 | -7/Factory | Fabricated Exp. Sensor Array? 11149 | -7/Factory | Repaired Shock Bomb Launcher? 11272 | -7/Factory | Manually triggered Chute Trap 11272 | -7/Factory | Sucked down chute 11272 | -7/Factory | Entered Waste 11278 | -7/Waste | Spotted C-40 Crusher 11284 | -7/Waste | Spotted C-40 Crusher 11284 | -7/Waste | Spotted C-40 Crusher 11287 | -7/Waste | EMP discharged 11288 | -7/Waste | Discovered new exit (range 16) 11292 | -7/Waste | Identified exit to Factory 11293 | -7/Waste | Entered Factory 11354 | -7/Factory | Discovered exit to Lower Caves (range 15) 11660 | -7/Factory | Discovered exit to Factory (range 9) 11794 | -7/Factory | Discovered exit to Storage (range 13) 11992 | -7/Factory | Fabricated Lgt. Neutrino Core? 12213 | -7/Factory | Discovered exit to Factory (range 15) 12239 | -7/Factory | Discovered exit to Lower Caves (range 4) 12284 | -7/Factory | Build established: Hacker-Sprinter 12296 | -7/Factory | Entered Lower Caves 12365 | -7/Lower Caves | Learned 4 Factory zone layouts 12724 | -7/Lower Caves | Discovered new exit (range 11) 12726 | -7/Lower Caves | Identified exit to Lower Caves 12727 | -7/Lower Caves | Entered another Lower Caves area 12730 | -7/Lower Caves | Discovered exit to Factory (range 15) 12930 | -7/Lower Caves | Spotted B-75 Beast 12935 | -7/Lower Caves | Encountered a Warlord checkpoint 13107 | -7/Lower Caves | Attracted the attention of an 0b10 checkpoint 13151 | -7/Lower Caves | Discovered new exit (range 8) 13153 | -7/Lower Caves | Identified exit to Zion 13153 | -7/Lower Caves | Entered Zion 13159 | -7/Zion | Learned Factory terminal intel 13177 | -7/Zion | System corruption cleaned by Quarantine Array 13218 | -7/Zion | Received a visual enhancement algorithm 13369 | -7/Zion | Learned 8 Factory zone layouts 13370 | -7/Zion | Discovered new exit (range 15) 13625 | -7/Zion | Found CR-A16's Pointy Stick 13735 | -7/Zion | Discovered new exit (range 3) 13739 | -7/Zion | Identified exit to Deep Caves 13743 | -7/Zion | Assimilated RZ-ZL6(M) with FLK Orb 13744 | -7/Zion | Attacked by Zionites 13749 | -7/Zion | Saw the warning signs outside the Deep Caves entrance 13762 | -7/Zion | Entered Deep Caves 13762 | -7/Deep Caves | Accompanied by 1 ally 13764 | -7/Deep Caves | Met 5H-AD0 13910 | -7/Deep Caves | Attacked by Z-Imprinter 13921 | -7/Deep Caves | Assimilated GJ-RRR(z) with FLK Orb 13922 | -7/Deep Caves | Allies destroyed Z-Imprinter 13933 | -7/Deep Caves | Found Prototype Device 13933 | -7/Deep Caves | Identified Zio. Metafield Generator 14071 | -7/Deep Caves | Z-Facility disabled 14131 | -7/Deep Caves | Found Prototype Protection 14131 | -7/Deep Caves | Identified Zio. Weapon Casing 14284 | -7/Deep Caves | Build established: Scavenger-Mutant 14530 | -7/Deep Caves | Discovered new exit (range 7) 14533 | -7/Deep Caves | Identified exit to Proximity Caves 14767 | -7/Deep Caves | Entered Proximity Caves 14769 | -6/Proximity Caves | Spotted B-75 Beast 14841 | -6/Proximity Caves | Acquired the password to a Derelict Tinkerer's latest research 14843 | -6/Proximity Caves | Found Prototype Special Weapon 14844 | -6/Proximity Caves | Identified Molecular Deconstructor 14906 | -6/Proximity Caves | Discovered exit to Factory (range 14) 14910 | -6/Proximity Caves | Entered Factory 14910 | -6/Factory | Evolved 2 slots: Utility x2 14912 | -6/Factory | Loaded intel: 20 terminal locations 15047 | -6/Factory | Repaired Gravity Neutralizing Apparatus? 15055 | -6/Factory | Fabricated Fusion Compressor? 15077 | -6/Factory | Fabricated Powered Armor? 15209 | -6/Factory | Fabricated Gravity Neutralizing Apparatus (x1) 15212 | -6/Factory | Build established: Hacker-Mutant 15283 | -6/Factory | Identified exit to Lower Caves 15308 | -6/Factory | Local fabrication network quarantined 15312 | -6/Factory | Central database locked down 15350 | -6/Factory | Entered Lower Caves 15356 | -6/Lower Caves | Encountered a Warlord checkpoint 15674 | -6/Lower Caves | Discovered new exit (range 6) 15677 | -6/Lower Caves | Identified exit to Lower Caves 15678 | -6/Lower Caves | Entered another Lower Caves area 15694 | -6/Lower Caves | Discovered new exit (range 5) 15696 | -6/Lower Caves | Identified exit to Factory 15773 | -6/Lower Caves | Encountered a Warlord checkpoint 15929 | -6/Lower Caves | Discovered new exit (range 5) 15931 | -6/Lower Caves | Identified exit to Data Miner 15940 | -6/Lower Caves | Entered Data Miner 15940 | -6/Data Miner | Discovered new exit (range 6) 15950 | -6/Data Miner | Met Data Miner 15963 | -6/Data Miner | Learned location of Section 7 (-2) 15963 | -6/Data Miner | Acquired the access code to Warlord's prototype stash 15968 | -6/Data Miner | Received God Mode back door access code from Data Miner 15988 | -6/Data Miner | Assimilated Data Miner with FLK Orb 16007 | -6/Data Miner | Identified exit to Proximity Caves 16011 | -6/Data Miner | Entered Proximity Caves 16011 | -5/Proximity Caves | Accompanied by 1 ally (Data Miner) 16012 | -5/Proximity Caves | Assimilated H-66 Slayer with FLK Orb 16063 | -5/Proximity Caves | Destroyed Data Miner 16065 | -5/Proximity Caves | Found Prototype Hackware 16068 | -5/Proximity Caves | Found Prototype Hackware 16289 | -5/Proximity Caves | Attracted the attention of an 0b10 checkpoint 16310 | -5/Proximity Caves | Attracted the attention of an 0b10 outpost 16321 | -5/Proximity Caves | Spotted B-75 Beast 16341 | -5/Proximity Caves | Entered Factory 16341 | -5/Factory | Evolved 2 slots: Utility x2 16342 | -5/Factory | Identified exit to Upper Caves 16353 | -5/Factory | Identified System Mapper 16354 | -5/Factory | Identified Quantum Router 16440 | -5/Factory | Fabricated Mni. Smartbomb Launcher? 16518 | -5/Factory | Fabricated Adv. Phase Shifter (x1) 16612 | -5/Factory | Fabricated Exp. ECM Suite? 16659 | -5/Factory | Build established: Wizard-Mutant 16786 | -5/Factory | Lost 5 parts (1p3n1w) 16836 | -5/Factory | Local fabrication network quarantined 16847 | -5/Factory | Sucked down chute 16847 | -5/Factory | Entered Waste 16854 | -5/Waste | Spotted C-40 Crusher 16854 | -5/Waste | Spotted C-40 Crusher 16877 | -5/Waste | Warlord forces began an assault 16951 | -5/Waste | Spotted C-40 Crusher 16955 | -5/Waste | Allies destroyed C-40 Crusher 16957 | -5/Waste | Allies destroyed C-40 Crusher 16971 | -5/Waste | Found Damper Plating 16977 | -5/Waste | Spotted C-40 Crusher 17168 | -5/Waste | Discovered new exit (range 12) 17270 | -5/Waste | Identified exit to Factory 17287 | -5/Waste | Entered Factory 17287 | -5/Factory | Accompanied by 14 allies 17966 | -5/Factory | Fabricated Exp. Utility Shielding? 18063 | -5/Factory | Fabricated Exp. Signal Interpreter? 18089 | -5/Factory | Local fabrication network quarantined 18131 | -5/Factory | Fabricated Exp. Cesium-ion Thruster? 18187 | -5/Factory | First assault squad dispatched 18306 | -5/Factory | Destroyed 8 combat bots 18364 | -5/Factory | Allied Derelicts emerged from ambush trap array 18440 | -5/Factory | Repaired Gravity Neutralizing Apparatus? 18492 | -5/Factory | Repaired Adv. Phase Shifter 18578 | -5/Factory | Repaired Fusion Compressor? 18768 | -5/Factory | Repaired Exp. Utility Shielding? 19178 | -5/Factory | Entered Upper Caves 19207 | -5/Upper Caves | Encountered a Warlord checkpoint 19278 | -5/Upper Caves | Discovered new exit (range 11) 19280 | -5/Upper Caves | Identified exit to Upper Caves 19280 | -5/Upper Caves | Entered another Upper Caves area 19280 | -5/Upper Caves | Spotted KV-03D(f) 19281 | -5/Upper Caves | Encountered a Master Thief 19281 | -5/Upper Caves | Discovered new exit (range 13) 19311 | -5/Upper Caves | Encountered a Warlord checkpoint 19323 | -5/Upper Caves | Discovered new exit (range 10) 19325 | -5/Upper Caves | Identified exit to Warlord 19325 | -5/Upper Caves | Entered Warlord 19336 | -5/Warlord | System corruption cleaned by Quarantine Array 19375 | -5/Warlord | Met Warlord 19377 | -5/Warlord | Opened Warlord's prototype stash 19385 | -5/Warlord | Found Prototype Hackware 19392 | -5/Warlord | Found Prototype Device 19392 | -5/Warlord | Identified Exp. Cloaking Device 19395 | -5/Warlord | Found Prototype Device 19396 | -5/Warlord | Identified Exp. Focal Shield 19400 | -5/Warlord | Warlord's base attacked by MAIN.C 19527 | -5/Warlord | Opened side exit 19653 | -5/Warlord | Discovered new exit (range 11) 19653 | -5/Warlord | Identified exit to Proximity Caves 19654 | -5/Warlord | Entered Proximity Caves 19773 | -4/Proximity Caves | Spotted B-86 Titan 19847 | -4/Proximity Caves | Discovered new exit (range 7) 19849 | -4/Proximity Caves | Identified exit to Factory 19866 | -4/Proximity Caves | Learned Research garrison access intel 19874 | -4/Proximity Caves | Entered Factory 19874 | -4/Factory | Evolved 2 slots: Utility x2 19874 | -4/Factory | Identified Ghost Barrier 19902 | -4/Factory | Identified exit to Upper Caves 19902 | -4/Factory | Identified exit to Extension 21423 | -4/Factory | Build established: Wizard-Sprinter 21607 | -4/Factory | Fabricated Adv. Hacking Suite? 21609 | -4/Factory | Fabricated Imp. Fusion Compressor? 21700 | -4/Factory | Repaired Exp. Utility Shielding 21862 | -4/Factory | Manually triggered Chute Trap 21862 | -4/Factory | Sucked down chute 21862 | -4/Factory | Entered Waste 21868 | -4/Waste | Spotted C-40 Crusher 21868 | -4/Waste | Spotted C-40 Crusher 21868 | -4/Waste | Spotted C-40 Crusher 21869 | -4/Waste | Spotted C-40 Crusher 21871 | -4/Waste | Discovered new exit (range 16) 21871 | -4/Waste | Spotted C-40 Crusher 21871 | -4/Waste | Spotted C-40 Crusher 21873 | -4/Waste | Identified exit to Factory 21873 | -4/Waste | Entered Factory 21955 | -4/Factory | Repaired Mni. Smartbomb Launcher? 22245 | -4/Factory | Spotted B-86 Titan 22414 | -4/Factory | Spotted B-86 Titan 22631 | -4/Factory | Fabricated Mni. Fusion Reactor? 22665 | -4/Factory | Discovered new exit (range 9) 22676 | -4/Factory | Adv. Hacking Suite fried by hacking feedback 22717 | -4/Factory | Fabricated Adv. Reaction Control System? 22758 | -4/Factory | Local fabrication network quarantined 22873 | -4/Factory | First assault squad dispatched 22886 | -4/Factory | Fabricated Exp. Force Field? 22923 | -4/Factory | Entered Extension 23008 | -4/Extension | Rescued a captive Derelict 23009 | -4/Extension | Rescued a captive Derelict 23024 | -4/Extension | Rescued a captive Derelict 23034 | -4/Extension | Rescued a captive Derelict 23035 | -4/Extension | Rescued a captive Derelict 23481 | -4/Extension | Rescued A7 23522 | -4/Extension | Discovered new exit (range 12) 23525 | -4/Extension | Discovered new exit (range 8) 23539 | -4/Extension | Identified exit to Cetus 23545 | -4/Extension | Entered Cetus 23545 | -4/Cetus | Accompanied by 8 allies (A7) 23550 | -4/Cetus | Acquired a Cetus Manufacturing Module code from A7 23555 | -4/Cetus | Spotted Cetus Guard 23555 | -4/Cetus | Spotted Cetus Guard 23562 | -4/Cetus | Spotted Cetus Guard 23562 | -4/Cetus | Spotted Cetus Guard 23567 | -4/Cetus | Allies destroyed Cetus Guard 23575 | -4/Cetus | Destroyed Cetus Guard 23580 | -4/Cetus | Allies destroyed Cetus Guard 23591 | -4/Cetus | Allies destroyed Cetus Guard 23633 | -4/Cetus | Started Cetus Manufacturing Module 23651 | -4/Cetus | Escorted A7 to Cetus Mainframe 23658 | -4/Cetus | Manufactured an Enhanced Grunt 23683 | -4/Cetus | Manufactured an Enhanced Grunt 23708 | -4/Cetus | Manufactured an Enhanced Grunt 23733 | -4/Cetus | Manufactured an Enhanced Grunt 23758 | -4/Cetus | Manufactured an Enhanced Grunt 23764 | -4/Cetus | Discovered new exit (range 15) 23767 | -4/Cetus | Identified exit to Archives 23801 | -4/Cetus | Entered Archives 23801 | -4/Archives | Accompanied by 11 allies (A7) 23806 | -4/Archives | Received a hacking code to weaken MAIN.C 23868 | -4/Archives | Unable to access archive contents 23871 | -4/Archives | Unable to access archive contents 23872 | -4/Archives | Discovered new exit (range 16) 23873 | -4/Archives | Unable to access archive contents 23876 | -4/Archives | Unable to access archive contents 23877 | -4/Archives | Discovered new exit (range 14) 23884 | -4/Archives | Identified exit to Research 23929 | -4/Archives | Discovered new exit (range 16) 23953 | -4/Archives | Identified exit to Hub_04(d) 23978 | -4/Archives | Entered Hub_04(d) 23978 | -4/Hub_04(d) | Accompanied by 9 allies 24141 | -4/Hub_04(d) | Discovered exit to Research (range 12) 24191 | -4/Hub_04(d) | Build established: Hacker-Sprinter 24492 | -4/Hub_04(d) | Network Hub disabled 24494 | -4/Hub_04(d) | Spotted Lightning 24494 | -4/Hub_04(d) | Spotted Lightning 24497 | -4/Hub_04(d) | Spotted Lightning 24497 | -4/Hub_04(d) | Spotted Lightning 24497 | -4/Hub_04(d) | Spotted Lightning 24497 | -4/Hub_04(d) | Spotted Lightning 24497 | -4/Hub_04(d) | Spotted Lightning 24497 | -4/Hub_04(d) | Spotted Lightning 24497 | -4/Hub_04(d) | Spotted Lightning 24501 | -4/Hub_04(d) | Network Hub disabled 24501 | -4/Hub_04(d) | Spotted Lightning 24502 | -4/Hub_04(d) | Spotted Lightning 24515 | -4/Hub_04(d) | Entered Research 24515 | -3/Research | Evolved 2 slots: Utility x2 24516 | -3/Research | Loaded intel: 2 garrison access locations 24576 | -3/Research | Repaired Exp. Utility Shielding 24614 | -3/Research | Repaired Cld. Impulse Thruster 24655 | -3/Research | Spotted B-86 Titan 24728 | -3/Research | Identified exit to Armory 24728 | -3/Research | Identified exit to Testing 24788 | -3/Research | DAS Turret deployed 24968 | -3/Research | Discovered new exit (range 10) 25015 | -3/Research | First assault squad dispatched 25084 | -3/Research | Found Enh. Force Lance 25202 | -3/Research | Fabricated Dimensional Manipulator? 25274 | -3/Research | Fabricated Dimensional Manipulator? 25474 | -3/Research | Fabricated Dimensional Manipulator (x1) 25517 | -3/Research | Local fabrication network quarantined 25529 | -3/Research | Found Enh. Force Lance 25545 | -3/Research | Entered Armory 25573 | -3/Armory | Build established: Wizard-Sprinter 25632 | -3/Armory | Found Exp. Melee Analysis Suite 25805 | -3/Armory | P-80 Master assimilated allied Rainmaker 8a 25853 | -3/Armory | Local fabrication network quarantined 25871 | -3/Armory | Repaired Exp. Utility Shielding 25894 | -3/Armory | Fabricated Nanosword? 25898 | -3/Armory | Repaired Mni. Fusion Reactor? 25899 | -3/Armory | Repaired Exp. Sensor Array 25938 | -3/Armory | Repaired Imp. Fusion Compressor? 25946 | -3/Armory | Repaired Adv. Phase Shifter? 26091 | -3/Armory | First assault squad dispatched 26306 | -3/Armory | Identified exit to Research 26321 | -3/Armory | Entered Research 26321 | -2/Research | Warlord forces began assault on 0b10 26321 | -2/Research | Evolved 2 slots: Utility x2 26336 | -2/Research | Spotted B-90 Cyclops 26337 | -2/Research | Identified exit to Quarantine 26346 | -2/Research | Central database locked down 26378 | -2/Research | Fabricated Exp. Force Field (x1) 26403 | -2/Research | Fabricated Adv. Powered Armor? 26431 | -2/Research | Research machine network offline 26440 | -2/Research | Fabricated Adv. Powered Armor? 26551 | -2/Research | Found Prototype Launcher 26680 | -2/Research | Found Exp. Terrain Scan Processor 26719 | -2/Research | Found Exp. Melee Analysis Suite 26721 | -2/Research | Found Prototype Slashing Weapon 26722 | -2/Research | Identified Particle Cleaver 26779 | -2/Research | Spotted Executioner 26779 | -2/Research | Spotted Executioner 26784 | -2/Research | Borebot progress halted 26793 | -2/Research | Borebot progress halted 26818 | -2/Research | Local fabrication network quarantined 26837 | -2/Research | Found Particle Cleaver 26858 | -2/Research | Destroyed Executioner 26863 | -2/Research | Found Prototype Processor 26864 | -2/Research | Identified Exp. Core Analyzer 26901 | -2/Research | Identified Ragnarok Missile Launcher 27020 | -2/Research | Borebot progress halted 27130 | -2/Research | Spotted Striker 27130 | -2/Research | Spotted Executioner 27131 | -2/Research | Spotted Executioner 27205 | -2/Research | Spotted Striker 27210 | -2/Research | Spotted Striker 27221 | -2/Research | Destroyed Striker 27340 | -2/Research | Spotted Striker 27480 | -2/Research | Warlord destroyed during the assault 27539 | -2/Research | Entered Quarantine 27546 | -2/Quarantine | Found Alien Artifact 27548 | -2/Quarantine | Identified Matter Drive 27593 | -2/Quarantine | Repaired Exp. Utility Shielding 27619 | -2/Quarantine | Found Alien Slashing Weapon 27621 | -2/Quarantine | Identified Sigix Broadsword 27811 | -2/Quarantine | Repaired Nanosword 27991 | -2/Quarantine | Discovered new exit (range 14) 28030 | -2/Quarantine | Spotted Fortress 28042 | -2/Quarantine | Discovered new exit (range 6) 28043 | -2/Quarantine | Identified exit to Section 7 28043 | -2/Quarantine | Entered Section 7 28119 | -2/Section 7 | Discovered new exit (range 10) 28120 | -2/Section 7 | Identified exit to Access 28125 | -2/Section 7 | Spotted B-90 Cyclops 28149 | -2/Section 7 | Found Alien Artifact 28150 | -2/Section 7 | Identified Core Reset Matrix 28150 | -2/Section 7 | Used Core Reset Matrix 28154 | -2/Section 7 | Sensed 20 artifacts in vicinity 28179 | -2/Section 7 | Repaired Unknown Device 28284 | -2/Section 7 | Spotted S7 Guard 28288 | -2/Section 7 | Found Integrated Singularity Reactor 28288 | -2/Section 7 | Installed Integrated Singularity Reactor, increased core energy generation (+20) 28462 | -2/Section 7 | Found Integrated Dissipator 28462 | -2/Section 7 | Installed Integrated Dissipator, increased core heat dissipation (+20) 28509 | -2/Section 7 | Spotted S7 Guard 28517 | -2/Section 7 | Found Core Membrane 28517 | -2/Section 7 | Installed Core Membrane, gained immunity to corruption 28533 | -2/Section 7 | Found Integrity Redistributor 28603 | -2/Section 7 | Found Integrated Reactor 28603 | -2/Section 7 | Installed Integrated Reactor, increased core energy generation (+10) 28636 | -2/Section 7 | Found Integrity Redistributor 28643 | -2/Section 7 | Spotted Alpha 7 28913 | -2/Section 7 | Spotted Executioner 28913 | -2/Section 7 | Spotted Executioner 28998 | -2/Section 7 | Found Matter Drive 29024 | -2/Section 7 | Crushed by falling debris 29024 | -2/Section 7 | Crushed by falling debris 29042 | -2/Section 7 | Spotted B-99 Colossus 29055 | -2/Section 7 | Lost 3 parts (3u) 29089 | -2/Section 7 | Spotted Striker 29089 | -2/Section 7 | Spotted Striker 29102 | -2/Section 7 | Found LRC Matter Compressor 29103 | -2/Section 7 | Installed LRC Matter Compressor, increased matter storage capacity (+125) 29116 | -2/Section 7 | Found Integrated Reactor 29117 | -2/Section 7 | Installed Integrated Reactor, increased core energy generation (+10) 29118 | -2/Section 7 | Found Integrated Reactor 29119 | -2/Section 7 | Installed Integrated Reactor, increased core energy generation (+10) 29120 | -2/Section 7 | Found Integrated Reactor 29121 | -2/Section 7 | Installed Integrated Reactor, increased core energy generation (+10) 29221 | -2/Section 7 | Found Transdimensional Reconstructor 29222 | -2/Section 7 | Found Transdimensional Reconstructor 29224 | -2/Section 7 | Found Terrabomb 29234 | -2/Section 7 | Entered Access 29234 | -1/Access | Evolved 2 slots: Utility x1, Weapon x1 29256 | -1/Access | Build established: Hacker-Sprinter 29472 | -1/Access | Spotted B-99 Colossus 29473 | -1/Access | Identified exit to Command 29618 | -1/Access | Fabricated Dimensional Manipulator? 29734 | -1/Access | First assault squad dispatched 29994 | -1/Access | Found Exp. Core Analyzer 30103 | -1/Access | Entered Command 30103 | -1/Command | Accompanied by 1 ally 30112 | -1/Command | Disengaged cave seal 30142 | -1/Command | Failed to warp due to unstable space 30144 | -1/Command | Used Integrity Redistributor, redistributed integrity from core (-39) 30197 | -1/Command | Spotted B-99 Colossus 30225 | -1/Command | Destroyed B-99 Colossus 30348 | -1/Command | Spotted B-99 Colossus 30353 | -1/Command | First assault squad dispatched 30450 | -1/Command | Disengaged cave seal 30450 | -1/Command | Assembled emerged from the dark tunnel 30515 | -1/Command | Spotted M Guard 30515 | -1/Command | Spotted M Guard 30531 | -1/Command | Spotted Combat Programmer 30539 | -1/Command | Spotted Combat Programmer 30543 | -1/Command | Destroyed Combat Programmer 30558 | -1/Command | Allies destroyed Combat Programmer 30683 | -1/Command | Destroyed M Guard 30692 | -1/Command | All MAIN.C guards destroyed 30700 | -1/Command | Met MAIN.C 30710 | -1/Command | Used Integrity Redistributor, redistributed integrity from core (-69) 30717 | -1/Command | High security lockdown imminent 30734 | -1/Command | 0b10 Conduit disabled 30797 | -1/Command | High security lockdown engaged 30821 | -1/Command | Destroyed MAIN.C Shell 30824 | -1/Command | MAIN.C activated Command garrisons 30896 | -1/Command | Used Terrabomb 30897 | -1/Command | Crushed by falling debris 30897 | -1/Command | Discovered new exit (range 15) 30900 | *** | Heading to fleet! Last Messages --------------- 30882_ Destroyed Unknown Device. 30883_ Critical hit. 30883_ Knocked back. 30889_ Critical hit. 30892_ Imp. Quantum Reactor destroyed. 30892_ Knocked back. 30892_ Core Membrane filtered system corruption (1). 30896_ Terrabomb activated. 30896_ Door Terminal disabled. 30896_ O-32 Director: "IFF HANDSHAKE FAILED. SECURING TERMINAL." 30897_ The unstable cave ceiling collapses. 30897_ Crushed by falling debris. 30897_ Exp. Melee Analysis Suite destroyed. 30897_ Core Membrane filtered system corruption (4). 30897_ Exp. Signal Interpreter destroyed. 30897_ Core Membrane filtered system corruption (2). 30897_ Nanosword destroyed. 30897_ Core Membrane filtered system corruption (3). 30897_ EXIT=FOUND [Achievement: Home At Last?] Map ----- +----------------------------------------------------+ | ????????????????????????????? ? "" | | ???????????????????????????? ? | | ?????????????????????????? ? | | ????????????????????????? ? | | ????????????????????????? "?" | | ???????????????????????? "?" "" | | ???????????????????????? """ " | | ??????????????????????? + """"" | | ????????????????????? # " """ | | ?????????????????????? """ | | ??????????????????????# # | | ??????????????????????# !! | | ??????????????????????# !! | | ??????????????????????# !! | | ??????????????????????# # | | ??????????????????????# | | ???????????????????????# ; | | ???????????????????????# ; | | ???????????????????????## "" | | ????????????????????????# "T | | ????????????????????????## ;;;; """ | | ?????????????????????????# ;; "?? | | ?????????????????????????## ; ; [][ = | | ???????????????????????#####;; [[[ ! = | | ???????????????????????# # !!! = | | ???????????????????????# @ ## !!!**== ?? | | ???????????????????????# ## ?? | | ???????????????????????### ## ??? | | ?????????????????????????# ## ## ??? | | ?????????????????????????# #?###### ###???? | | ?????????????????????????" #???????##?????? | | ?????????????????????????" #??????????????? | | ?????????????????????????" ! #??????????????? | | ????????????????????????T "??????????????? | | ?????????????????????????" ??????????????? | | ?????????????????????????" "??????????????? | | ?????????????????????????" #??????????????? | | ?????????????????????????# #??????????????? | | ?????????????????????????? ????????????????? | | ??????????????????????????+###???????????????????? | | ?????????????????????????????????????????????????? | | ?????????????????????????????????????????????????? | | ?????????????????????????????????????????????????? | | ?????????????????????????????????????????????????? | | ?????????????????????????????????????????????????? | | ?????????????????????????????????????????????????? | | ?????????????????????????????????????????????????? | | ?????????????????????????????????????????????????? | | ?????????????????????????????????????????????????? | | ?????????????????????????????????????????????????? | +----------------------------------------------------+ Best States ------------- Heat Dissipation 72 Coolant Potential 50 Energy Generation 96 Energy Capacity 1730 Matter Stores 425 Matter Capacity 425 Sight Range 16 Robot Scan Range 30 Terrain Scan Density 10 ECM Strength 5 Jamming Range 16 Cloak Strength 4 Power Amplification 30 Additional Mass Support 75 Armor Coverage 800 Resistance: KI 30 Resistance: EM 15 Utility Shielding 90 Weapon Shielding 100 Phase Shifting 15 Evasion (%) 97 Targeting Accuracy 12 Melee Accuracy 24 Core Analysis 15 Armor Integrity Analysis 33 Recoil Reduction 2 Offensive Hacking 50 Defensive Hacking 59 Item Schematics ----------------- Dimensional Manipulator | -1/Access | Scanalyzed Robot Schematics ------------------ None Fabricated ------------ Exp. Sensor Array | x1 | -7/Factory Lgt. Neutrino Core | x1 | -7/Factory Fusion Compressor | x2 | -6/Factory Powered Armor | x2 | -6/Factory Gravity Neutralizing Apparatus | x1 | -6/Factory Mni. Smartbomb Launcher | x1 | -5/Factory Adv. Phase Shifter | x1 | -5/Factory Exp. ECM Suite | x1 | -5/Factory Exp. Utility Shielding | x1 | -5/Factory Exp. Signal Interpreter | x1 | -5/Factory Exp. Cesium-ion Thruster | x1 | -5/Factory Adv. Hacking Suite | x1 | -4/Factory Imp. Fusion Compressor | x1 | -4/Factory Mni. Fusion Reactor | x1 | -4/Factory Adv. Reaction Control System | x1 | -4/Factory Dimensional Manipulator | x1 | -3/Research Dimensional Manipulator | x1 | -3/Research Dimensional Manipulator | x1 | -3/Research Nanosword | x1 | -3/Armory Exp. Force Field | x1 | -2/Research Adv. Powered Armor | x1 | -2/Research Adv. Powered Armor | x1 | -2/Research Dimensional Manipulator | x1 | -1/Access Alien Tech Used ----------------- Matter Drive Sigix Broadsword Core Reset Matrix Integrated Singularity Reactor Integrated Dissipator Core Membrane Integrated Reactor LRC Matter Compressor Transdimensional Reconstructor Integrity Redistributor Terrabomb Achievements -------------- Beloved Corridor Of Doom Great Explorer Home At Last? Main Advantage Meet Your Maker Project G-00 Speed Demon Wheee! Challenges ------------ None Game ------ Seed LightningIntegratedShotgun Manual? 0 Play Time 18:34:43 Cumulative 250.1 hours Start 2020.12.16 @ 15:42:18 End 2020.12.21 @ 01:06:16 Sessions 43 Manual Loads 0 Difficulty Rogue Special Mode None Game No. 86 Rogue 82 Adventurer 4 Explorer 0 Win Type 2 Total 3 Types 2/0/1/0/0/0/0/0/0 Lore% 65 Gallery% 72 Achievement% 57 Wizard Run 0 Options --------- ASCII 1 Keyboard 0 Movement Arrows Keybinds 0 Fullscreen 1 Font 18/Smallcaps Map View 76x50 Tactical HUD 1 Map Filters NONE Filters NONE Steam 1 RUN: 997c5747-daa7-485d-9158-9113b859bca4